Workbook

Sheet 32% Range
A1: Please enter your specific information below
A4: Mean
A5: Standard Deviation
A7: Lower Limit | B7: 3
A8: Upper Limit | B8: 35
A10: =IF(B8-B7=32,"In 32% Range","Out-of 32% Range") -> In 32% Range

Sheet Data (hidden)
A1: Z = 3.5 for 100% compliance
A2: Z = 1.645 for 95% compliance
A3: Z = 1.281 for 90% compliance
A5: 1 | J5: 0.95 | S5: 0.9
A6: Mean | B6: Std Dev | C6: ZUpper | D6: ZLower | E6: % ComplianceUpper | F6: % ComplianceLower | G6: ∑Compliance | H6: Smooth Values | J6: Mean | K6: Std Dev | L6: ZUpper | M6: ZLower | N6: % ComplianceUpper | O6: % ComplianceLower | P6: ∑Compliance | Q6: Smooth Values | S6: Mean | T6: Std Dev | U6: ZUpper | V6: ZLower | W6: % ComplianceUpper | X6: % ComplianceLower | Y6: ∑Compliance | Z6: Smooth Values
A7: ='32% Range'!$B$7+0.05 -> 3.05 | B7: 0.01589921362 | C7: =('32% Range'!$B$8-Data!A7)/Data!B7 -> 2009.533349 | D7: =(A7-'32% Range'!$B$7)/Data!B7 -> 3.144809624 | E7: =NORMSDIST(C7)-0.5 -> 0.5 | F7: =NORMSDIST(D7)-0.5 -> 0.4991690253 | G7: =E7+F7 -> 0.9991690253 | H7: 0.01589921362 | J7: ='32% Range'!$B$7+0.05 -> 3.05 | K7: 0.0303447942 | L7: =('32% Range'!$B$8-Data!J7)/Data!K7 -> 1052.898886 | M7: =(J7-'32% Range'!$B$7)/Data!K7 -> 1.647729086 | N7: =NORMSDIST(L7)-0.5 -> 0.5 | O7: =NORMSDIST(M7)-0.5 -> 0.4502958617 | P7: =N7+O7 -> 0.9502958617 | Q7: 0.0303447942 | S7: ='32% Range'!$B$7+0.05 -> 3.05 | T7: 0.03909791028 | U7: =('32% Range'!$B$8-Data!S7)/Data!T7 -> 817.1792245 | V7: =(S7-'32% Range'!$B$7)/Data!T7 -> 1.278840727 | W7: =NORMSDIST(U7)-0.5 -> 0.5 | X7: =NORMSDIST(V7)-0.5 -> 0.3995234256 | Y7: =W7+X7 -> 0.8995234256 | Z7: 0.03909791028
A8: ='32% Range'!$B$7+0.1 -> 3.1 | B8: 0.03179831666 | C8: =('32% Range'!$B$8-Data!A8)/Data!B8 -> 1003.197759 | D8: =(A8-'32% Range'!$B$7)/Data!B8 -> 3.14482056 | E8: =NORMSDIST(C8)-0.5 -> 0.5 | F8: =NORMSDIST(D8)-0.5 -> 0.4991690564 | G8: =E8+F8 -> 0.9991690564 | H8: 0.03179831666 | J8: ='32% Range'!$B$7+0.1 -> 3.1 | K8: 0.06068847618 | L8: =('32% Range'!$B$8-Data!J8)/Data!K8 -> 525.6352113 | M8: =(J8-'32% Range'!$B$7)/Data!K8 -> 1.647759283 | N8: =NORMSDIST(L8)-0.5 -> 0.5 | O8: =NORMSDIST(M8)-0.5 -> 0.4502989613 | P8: =N8+O8 -> 0.9502989613 | Q8: 0.06068847618 | S8: ='32% Range'!$B$7+0.1 -> 3.1 | T8: 0.07818391538 | U8: =('32% Range'!$B$8-Data!S8)/Data!T8 -> 408.012311 | V8: =(S8-'32% Range'!$B$7)/Data!T8 -> 1.279035458 | W8: =NORMSDIST(U8)-0.5 -> 0.5 | X8: =NORMSDIST(V8)-0.5 -> 0.3995577151 | Y8: =W8+X8 -> 0.8995577151 | Z8: 0.07818391538
A9: =A8+0.1 -> 3.2 | B9: 0.06359669157 | C9: =('32% Range'!$B$8-Data!A9)/Data!B9 -> 500.026011 | D9: =(A9-'32% Range'!$B$7)/Data!B9 -> 3.144817679 | E9: 0.5 | F9: 0.4991690482 | G9: 0.9991690482 | H9: 0.06359669157 | J9: =A8+0.1 -> 3.2 | K9: 0.1213775382 | L9: =('32% Range'!$B$8-Data!J9)/Data!K9 -> 261.9924614 | M9: =(J9-'32% Range'!$B$7)/Data!K9 -> 1.64775133 | N9: 0.5 | O9: 0.4502981449 | P9: 0.9502981449 | Q9: 0.1213775382 | S9: =S8+0.1 -> 3.2 | T9: 0.1563679377 | U9: =('32% Range'!$B$8-Data!S9)/Data!T9 -> 203.3664987 | V9: =(S9-'32% Range'!$B$7)/Data!T9 -> 1.279034583 | W9: 0.5 | X9: 0.3995575611 | Y9: 0.8995575611 | Z9: 0.1563679377
A10: =A9+0.1 -> 3.3 | B10: 0.09539502552 | C10: =('32% Range'!$B$8-Data!A10)/Data!B10 -> 332.3024427 | D10: =(A10-'32% Range'!$B$7)/Data!B10 -> 3.14481807 | E10: 0.5 | F10: 0.4991690493 | G10: 0.9991690493 | H10: 0.09539502552 | J10: =A9+0.1 -> 3.3 | K10: 0.1820661884 | L10: =('32% Range'!$B$8-Data!J10)/Data!K10 -> 174.1125043 | M10: =(J10-'32% Range'!$B$7)/Data!K10 -> 1.647752406 | N10: 0.5 | O10: 0.4502982554 | P10: 0.9502982554 | Q10: 0.1820661884 | S10: =S9+0.1 -> 3.3 | T10: 0.2345519088 | U10: =('32% Range'!$B$8-Data!S10)/Data!T10 -> 135.1513197 | V10: =(S10-'32% Range'!$B$7)/Data!T10 -> 1.279034571 | W10: 0.5 | X10: 0.3995575589 | Y10: 0.8995575589 | Z10: 0.2345519088
A11: 3.4 | B11: 0.1271933719 | C11: =('32% Range'!$B$8-Data!A11)/Data!B11 -> 248.4406186 | D11: =(A11-'32% Range'!$B$7)/Data!B11 -> 3.144817958 | E11: 0.5 | F11: 0.499169049 | G11: 0.999169049 | H11: 0.1271933719 | J11: 3.4 | K11: 0.2427549634 | L11: =('32% Range'!$B$8-Data!J11)/Data!K11 -> 130.1724157 | M11: =(J11-'32% Range'!$B$7)/Data!K11 -> 1.647752097 | N11: 0.5 | O11: 0.4502982237 | P11: 0.9502982237 | Q11: 0.2427549634 | S11: 3.4 | T11: 0.3127358775 | U11: =('32% Range'!$B$8-Data!S11)/Data!T11 -> 101.0437314 | V11: =(S11-'32% Range'!$B$7)/Data!T11 -> 1.279034574 | W11: 0.5 | X11: 0.3995575595 | Y11: 0.8995575595 | Z11: 0.3127358775
A12: 3.5 | B12: 0.1589917219 | C12: =('32% Range'!$B$8-Data!A12)/Data!B12 -> 198.1235226 | D12: =(A12-'32% Range'!$B$7)/Data!B12 -> 3.144817819 | E12: 0.5 | F12: 0.4991690486 | G12: 0.9991690486 | H12: 0.1589917219 | J12: 3.5 | K12: 0.3034437747 | L12: =('32% Range'!$B$8-Data!J12)/Data!K12 -> 103.808358 | M12: =(J12-'32% Range'!$B$7)/Data!K12 -> 1.647751715 | N12: 0.5 | O12: 0.4502981844 | P12: 0.9502981844 | Q12: 0.3034437747 | S12: 3.5 | T12: 0.3909198455 | U12: =('32% Range'!$B$8-Data!S12)/Data!T12 -> 80.57917847 | V12: =(S12-'32% Range'!$B$7)/Data!T12 -> 1.279034579 | W12: 0.5 | X12: 0.3995575603 | Y12: 0.8995575603 | Z12: 0.3909198455
A13: 3.6 | B13: 0.1907900733 | C13: =('32% Range'!$B$8-Data!A13)/Data!B13 -> 164.5787931 | D13: =(A13-'32% Range'!$B$7)/Data!B13 -> 3.144817703 | E13: 0.5 | F13: 0.4991690482 | G13: 0.9991690482 | H13: 0.1907900733 | J13: 3.6 | K13: 0.3641326005 | L13: =('32% Range'!$B$8-Data!J13)/Data!K13 -> 86.23232294 | M13: =(J13-'32% Range'!$B$7)/Data!K13 -> 1.647751394 | N13: 0.5 | O13: 0.4502981515 | P13: 0.9502981515 | Q13: 0.3641326005 | S13: 3.6 | T13: 0.4691038133 | U13: =('32% Range'!$B$8-Data!S13)/Data!T13 -> 66.93614315 | V13: =(S13-'32% Range'!$B$7)/Data!T13 -> 1.279034583 | W13: 0.5 | X13: 0.399557561 | Y13: 0.899557561 | Z13: 0.4691038133
A14: 3.7 | B14: 0.2225884254 | C14: =('32% Range'!$B$8-Data!A14)/Data!B14 -> 140.6182731 | D14: =(A14-'32% Range'!$B$7)/Data!B14 -> 3.14481761 | E14: 0.5 | F14: 0.499169048 | G14: 0.999169048 | H14: 0.2225884254 | J14: 3.7 | K14: 0.4248214333 | L14: =('32% Range'!$B$8-Data!J14)/Data!K14 -> 73.67801515 | M14: =(J14-'32% Range'!$B$7)/Data!K14 -> 1.647751137 | N14: 0.5 | O14: 0.4502981252 | P14: 0.9502981252 | Q14: 0.4248214333 | S14: 3.7 | T14: 0.5472877809 | U14: =('32% Range'!$B$8-Data!S14)/Data!T14 -> 57.19111789 | V14: =(S14-'32% Range'!$B$7)/Data!T14 -> 1.279034585 | W14: 0.5 | X14: 0.3995575615 | Y14: 0.8995575615 | Z14: 0.5472877809
A15: 3.8 | B15: 0.2543867779 | C15: =('32% Range'!$B$8-Data!A15)/Data!B15 -> 122.6478839 | D15: =(A15-'32% Range'!$B$7)/Data!B15 -> 3.144817536 | E15: 0.5 | F15: 0.4991690478 | G15: 0.9991690478 | H15: 0.2543867779 | J15: 3.8 | K15: 0.48551027 | L15: =('32% Range'!$B$8-Data!J15)/Data!K15 -> 64.26228635 | M15: =(J15-'32% Range'!$B$7)/Data!K15 -> 1.647750932 | N15: 0.5 | O15: 0.4502981041 | P15: 0.9502981041 | Q15: 0.48551027 | S15: 3.8 | T15: 0.6254717485 | U15: =('32% Range'!$B$8-Data!S15)/Data!T15 -> 49.88234893 | V15: =(S15-'32% Range'!$B$7)/Data!T15 -> 1.279034588 | W15: 0.5 | X15: 0.3995575619 | Y15: 0.8995575619 | Z15: 0.6254717485
A16: 3.9 | B16: 0.2861851307 | C16: =('32% Range'!$B$8-Data!A16)/Data!B16 -> 108.670915 | D16: =(A16-'32% Range'!$B$7)/Data!B16 -> 3.144817475 | E16: 0.5 | F16: 0.4991690476 | G16: 0.9991690476 | H16: 0.286 | J16: 3.9 | K16: 0.5461991091 | L16: =('32% Range'!$B$8-Data!J16)/Data!K16 -> 56.93894311 | M16: =(J16-'32% Range'!$B$7)/Data!K16 -> 1.647750765 | N16: 0.5 | O16: 0.450298087 | P16: 0.950298087 | Q16: 0.5461991091 | S16: 3.9 | T16: 0.703655716 | U16: =('32% Range'!$B$8-Data!S16)/Data!T16 -> 44.19775082 | V16: =(S16-'32% Range'!$B$7)/Data!T16 -> 1.27903459 | W16: 0.5 | X16: 0.3995575622 | Y16: 0.8995575622 | Z16: 0.703655716
A17: 4 | B17: 0.3179834835 | C17: =('32% Range'!$B$8-Data!A17)/Data!B17 -> 97.48934019 | D17: =(A17-'32% Range'!$B$7)/Data!B17 -> 3.144817425 | E17: 0.5 | F17: 0.4991690474 | G17: 0.9991690474 | H17: 0.318 | J17: 4 | K17: 0.6068879496 | L17: =('32% Range'!$B$8-Data!J17)/Data!K17 -> 51.08026946 | M17: =(J17-'32% Range'!$B$7)/Data!K17 -> 1.647750628 | N17: 0.5 | O17: 0.4502980729 | P17: 0.9502980729 | Q17: 0.6068879496 | S17: 4 | T17: 0.7818396834 | U17: =('32% Range'!$B$8-Data!S17)/Data!T17 -> 39.65007233 | V17: =(S17-'32% Range'!$B$7)/Data!T17 -> 1.279034591 | W17: 0.5 | X17: 0.3995575625 | Y17: 0.8995575625 | Z17: 0.7818396834
A18: 4.1 | B18: 0.3497818365 | C18: =('32% Range'!$B$8-Data!A18)/Data!B18 -> 88.34077923 | D18: =(A18-'32% Range'!$B$7)/Data!B18 -> 3.144817384 | E18: 0.5 | F18: 0.4991690473 | G18: 0.9991690473 | H18: 0.35 | J18: 4.1 | K18: 0.6675767912 | L18: =('32% Range'!$B$8-Data!J18)/Data!K18 -> 46.28680986 | M18: =(J18-'32% Range'!$B$7)/Data!K18 -> 1.647750513 | N18: 0.5 | O18: 0.4502980611 | P18: 0.9502980611 | Q18: 0.668 | S18: 4.1 | T18: 0.8600236509 | U18: =('32% Range'!$B$8-Data!S18)/Data!T18 -> 35.92924447 | V18: =(S18-'32% Range'!$B$7)/Data!T18 -> 1.279034593 | W18: 0.5 | X18: 0.3995575627 | Y18: 0.8995575627 | Z18: 0.86
A19: 4.2 | B19: 0.3815801896 | C19: =('32% Range'!$B$8-Data!A19)/Data!B19 -> 80.71697861 | D19: =(A19-'32% Range'!$B$7)/Data!B19 -> 3.144817348 | E19: 0.5 | F19: 0.4991690472 | G19: 0.9991690472 | H19: 0.382 | J19: 4.2 | K19: 0.7282656335 | L19: =('32% Range'!$B$8-Data!J19)/Data!K19 -> 42.29226066 | M19: =(J19-'32% Range'!$B$7)/Data!K19 -> 1.647750415 | N19: 0.5 | O19: 0.4502980511 | P19: 0.9502980511 | Q19: 0.728 | S19: 4.2 | T19: 0.9382076184 | U19: =('32% Range'!$B$8-Data!S19)/Data!T19 -> 32.82855457 | V19: =(S19-'32% Range'!$B$7)/Data!T19 -> 1.279034594 | W19: 0.5 | X19: 0.3995575629 | Y19: 0.8995575629 | Z19: 0.938
A20: 4.3 | B20: 0.4133785427 | C20: =('32% Range'!$B$8-Data!A20)/Data!B20 -> 74.26607051 | D20: =(A20-'32% Range'!$B$7)/Data!B20 -> 3.144817318 | E20: 0.5 | F20: 0.4991690471 | G20: 0.9991690471 | H20: 0.413 | J20: 4.3 | K20: 0.7889544763 | L20: =('32% Range'!$B$8-Data!J20)/Data!K20 -> 38.91225783 | M20: =(J20-'32% Range'!$B$7)/Data!K20 -> 1.647750332 | N20: 0.5 | O20: 0.4502980425 | P20: 0.9502980425 | Q20: 0.789 | S20: 4.3 | T20: 1.016391586 | U20: =('32% Range'!$B$8-Data!S20)/Data!T20 -> 30.20489389 | V20: =(S20-'32% Range'!$B$7)/Data!T20 -> 1.279034595 | W20: 0.5 | X20: 0.3995575631 | Y20: 0.8995575631 | Z20: 1.016
A21: 4.4 | B21: 0.4451768959 | C21: =('32% Range'!$B$8-Data!A21)/Data!B21 -> 68.73672081 | D21: =(A21-'32% Range'!$B$7)/Data!B21 -> 3.144817292 | E21: 0.5 | F21: 0.4991690471 | G21: 0.9991690471 | H21: 0.445 | J21: 4.4 | K21: 0.8496433196 | L21: =('32% Range'!$B$8-Data!J21)/Data!K21 -> 36.01511281 | M21: =(J21-'32% Range'!$B$7)/Data!K21 -> 1.647750259 | N21: 0.5 | O21: 0.450298035 | P21: 0.950298035 | Q21: 0.85 | S21: 4.4 | T21: 1.094575553 | U21: =('32% Range'!$B$8-Data!S21)/Data!T21 -> 27.95604187 | V21: =(S21-'32% Range'!$B$7)/Data!T21 -> 1.279034596 | W21: 0.5 | X21: 0.3995575632 | Y21: 0.8995575632 | Z21: 1.095
A22: 4.5 | B22: 0.476975249 | C22: =('32% Range'!$B$8-Data!A22)/Data!B22 -> 63.9446178 | D22: =(A22-'32% Range'!$B$7)/Data!B22 -> 3.144817269 | E22: 0.5 | F22: 0.499169047 | G22: 0.999169047 | H22: 0.477 | J22: 4.5 | K22: 0.9103321631 | L22: =('32% Range'!$B$8-Data!J22)/Data!K22 -> 33.50425398 | M22: =(J22-'32% Range'!$B$7)/Data!K22 -> 1.647750196 | N22: 0.5 | O22: 0.4502980285 | P22: 0.9502980285 | Q22: 0.91 | S22: 4.5 | T22: 1.172759521 | U22: =('32% Range'!$B$8-Data!S22)/Data!T22 -> 26.00703679 | V22: =(S22-'32% Range'!$B$7)/Data!T22 -> 1.279034596 | W22: 0.5 | X22: 0.3995575634 | Y22: 0.8995575634 | Z22: 1.173
A23: 4.6 | B23: 0.5087736022 | C23: =('32% Range'!$B$8-Data!A23)/Data!B23 -> 59.75152772 | D23: =(A23-'32% Range'!$B$7)/Data!B23 -> 3.144817249 | E23: 0.5 | F23: 0.4991690469 | G23: 0.9991690469 | H23: 0.509 | J23: 4.6 | K23: 0.9710210069 | L23: =('32% Range'!$B$8-Data!J23)/Data!K23 -> 31.30725266 | M23: =(J23-'32% Range'!$B$7)/Data!K23 -> 1.64775014 | N23: 0.5 | O23: 0.4502980228 | P23: 0.9502980228 | Q23: 0.971 | S23: 4.6 | T23: 1.250943488 | U23: =('32% Range'!$B$8-Data!S23)/Data!T23 -> 24.30165734 | V23: =(S23-'32% Range'!$B$7)/Data!T23 -> 1.279034597 | W23: 0.5 | X23: 0.3995575635 | Y23: 0.8995575635 | Z23: 1.251
A24: 4.7 | B24: 0.5405719555 | C24: =('32% Range'!$B$8-Data!A24)/Data!B24 -> 56.05174241 | D24: =(A24-'32% Range'!$B$7)/Data!B24 -> 3.144817231 | E24: 0.5 | F24: 0.4991690469 | G24: 0.9991690469 | H24: 0.541 | J24: 4.7 | K24: 1.031709851 | L24: =('32% Range'!$B$8-Data!J24)/Data!K24 -> 29.3687222 | M24: =(J24-'32% Range'!$B$7)/Data!K24 -> 1.64775009 | N24: 0.5 | O24: 0.4502980177 | P24: 0.9502980177 | Q24: 1.032 | S24: 4.7 | T24: 1.329127455 | U24: =('32% Range'!$B$8-Data!S24)/Data!T24 -> 22.79691077 | V24: =(S24-'32% Range'!$B$7)/Data!T24 -> 1.279034597 | W24: 0.5 | X24: 0.3995575636 | Y24: 0.8995575636 | Z24: 1.329
A25: 4.8 | B25: 0.5723703087 | C25: =('32% Range'!$B$8-Data!A25)/Data!B25 -> 52.76304438 | D25: =(A25-'32% Range'!$B$7)/Data!B25 -> 3.144817215 | E25: 0.5 | F25: 0.4991690469 | G25: 0.9991690469 | H25: 0.572 | J25: 4.8 | K25: 1.092398695 | L25: =('32% Range'!$B$8-Data!J25)/Data!K25 -> 27.64558411 | M25: =(J25-'32% Range'!$B$7)/Data!K25 -> 1.647750046 | N25: 0.5 | O25: 0.4502980132 | P25: 0.9502980132 | Q25: 1.092 | S25: 4.8 | T25: 1.407311423 | U25: =('32% Range'!$B$8-Data!S25)/Data!T25 -> 21.45935826 | V25: =(S25-'32% Range'!$B$7)/Data!T25 -> 1.279034598 | W25: 0.5 | X25: 0.3995575637 | Y25: 0.8995575637 | Z25: 1.407
A26: 4.9 | B26: 0.604168662 | C26: =('32% Range'!$B$8-Data!A26)/Data!B26 -> 49.82052512 | D26: =(A26-'32% Range'!$B$7)/Data!B26 -> 3.1448172 | E26: 0.5 | F26: 0.4991690468 | G26: 0.9991690468 | H26: 0.604 | J26: 4.9 | K26: 1.153087539 | L26: =('32% Range'!$B$8-Data!J26)/Data!K26 -> 26.10382905 | M26: =(J26-'32% Range'!$B$7)/Data!K26 -> 1.647750006 | N26: 0.5 | O26: 0.4502980091 | P26: 0.9502980091 | Q26: 1.153 | S26: 4.9 | T26: 1.48549539 | U26: =('32% Range'!$B$8-Data!S26)/Data!T26 -> 20.26260074 | V26: =(S26-'32% Range'!$B$7)/Data!T26 -> 1.279034598 | W26: 0.5 | X26: 0.3995575638 | Y26: 0.8995575638 | Z26: 1.485
A27: 5 | B27: 0.6359670152 | C27: =('32% Range'!$B$8-Data!A27)/Data!B27 -> 47.17225781 | D27: =(A27-'32% Range'!$B$7)/Data!B27 -> 3.144817187 | E27: 0.5 | F27: 0.4991690468 | G27: 0.9991690468 | H27: 0.636 | J27: 5 | K27: 1.213776384 | L27: =('32% Range'!$B$8-Data!J27)/Data!K27 -> 24.71624956 | M27: =(J27-'32% Range'!$B$7)/Data!K27 -> 1.64774997 | N27: 0.5 | O27: 0.4502980054 | P27: 0.9502980054 | Q27: 1.214 | S27: 5 | T27: 1.563679358 | U27: =('32% Range'!$B$8-Data!S27)/Data!T27 -> 19.18551898 | V27: =(S27-'32% Range'!$B$7)/Data!T27 -> 1.279034599 | W27: 0.5 | X27: 0.3995575638 | Y27: 0.8995575638 | Z27: 1.564
A28: 5.1 | B28: 0.6677653685 | C28: =('32% Range'!$B$8-Data!A28)/Data!B28 -> 44.77620645 | D28: =(A28-'32% Range'!$B$7)/Data!B28 -> 3.144817175 | E28: 0.5 | F28: 0.4991690467 | G28: 0.9991690467 | H28: 0.668 | J28: 5.1 | K28: 1.274465228 | L28: =('32% Range'!$B$8-Data!J28)/Data!K28 -> 23.46082054 | M28: =(J28-'32% Range'!$B$7)/Data!K28 -> 1.647749938 | N28: 0.5 | O28: 0.450298002 | P28: 0.950298002 | Q28: 1.274 | S28: 5.1 | T28: 1.641863325 | U28: =('32% Range'!$B$8-Data!S28)/Data!T28 -> 18.21101644 | V28: =(S28-'32% Range'!$B$7)/Data!T28 -> 1.279034599 | W28: 0.5 | X28: 0.3995575639 | Y28: 0.8995575639 | Z28: 1.642
A29: 5.2 | B29: 0.6995637218 | C29: =('32% Range'!$B$8-Data!A29)/Data!B29 -> 42.59797796 | D29: =(A29-'32% Range'!$B$7)/Data!B29 -> 3.144817165 | E29: 0.5 | F29: 0.4991690467 | G29: 0.9991690467 | H29: 0.7 | J29: 5.2 | K29: 1.335154073 | L29: =('32% Range'!$B$8-Data!J29)/Data!K29 -> 22.31952148 | M29: =(J29-'32% Range'!$B$7)/Data!K29 -> 1.647749908 | N29: 0.5 | O29: 0.450297999 | P29: 0.950297999 | Q29: 1.335 | S29: 5.2 | T29: 1.720047292 | U29: =('32% Range'!$B$8-Data!S29)/Data!T29 -> 17.32510503 | V29: =(S29-'32% Range'!$B$7)/Data!T29 -> 1.2790346 | W29: 0.5 | X29: 0.399557564 | Y29: 0.899557564 | Z29: 1.72
A30: 5.3 | B30: 0.7313620751 | C30: =('32% Range'!$B$8-Data!A30)/Data!B30 -> 40.60916065 | D30: =(A30-'32% Range'!$B$7)/Data!B30 -> 3.144817155 | E30: 0.5 | F30: 0.4991690467 | G30: 0.9991690467 | H30: 0.731 | J30: 5.3 | K30: 1.395842917 | L30: =('32% Range'!$B$8-Data!J30)/Data!K30 -> 21.27746585 | M30: =(J30-'32% Range'!$B$7)/Data!K30 -> 1.64774988 | N30: 0.5 | O30: 0.4502979962 | P30: 0.9502979962 | Q30: 1.396 | S30: 5.3 | T30: 1.79823126 | U30: =('32% Range'!$B$8-Data!S30)/Data!T30 -> 16.5162294 | V30: =(S30-'32% Range'!$B$7)/Data!T30 -> 1.2790346 | W30: 0.5 | X30: 0.399557564 | Y30: 0.899557564 | Z30: 1.798
A31: 5.4 | B31: 0.7631604284 | C31: =('32% Range'!$B$8-Data!A31)/Data!B31 -> 38.78607813 | D31: =(A31-'32% Range'!$B$7)/Data!B31 -> 3.144817146 | E31: 0.5 | F31: 0.4991690467 | G31: 0.9991690467 | H31: 0.763 | J31: 5.4 | K31: 1.456531762 | L31: =('32% Range'!$B$8-Data!J31)/Data!K31 -> 20.32224821 | M31: =(J31-'32% Range'!$B$7)/Data!K31 -> 1.647749855 | N31: 0.5 | O31: 0.4502979936 | P31: 0.9502979936 | Q31: 1.457 | S31: 5.4 | T31: 1.876415227 | U31: =('32% Range'!$B$8-Data!S31)/Data!T31 -> 15.77476007 | V31: =(S31-'32% Range'!$B$7)/Data!T31 -> 1.2790346 | W31: 0.5 | X31: 0.3995575641 | Y31: 0.8995575641 | Z31: 1.876
A32: 5.5 | B32: 0.7949587817 | C32: =('32% Range'!$B$8-Data!A32)/Data!B32 -> 37.10884222 | D32: =(A32-'32% Range'!$B$7)/Data!B32 -> 3.144817137 | E32: 0.5 | F32: 0.4991690466 | G32: 0.9991690466 | H32: 0.795 | J32: 5.5 | K32: 1.517220607 | L32: =('32% Range'!$B$8-Data!J32)/Data!K32 -> 19.44344801 | M32: =(J32-'32% Range'!$B$7)/Data!K32 -> 1.647749832 | N32: 0.5 | O32: 0.4502979911 | P32: 0.9502979911 | Q32: 1.517 | S32: 5.5 | T32: 1.954599195 | U32: =('32% Range'!$B$8-Data!S32)/Data!T32 -> 15.09260829 | V32: =(S32-'32% Range'!$B$7)/Data!T32 -> 1.2790346 | W32: 0.5 | X32: 0.3995575641 | Y32: 0.8995575641 | Z32: 1.955
A33: 5.6 | B33: 0.8267571352 | C33: =('32% Range'!$B$8-Data!A33)/Data!B33 -> 35.56062446 | D33: =(A33-'32% Range'!$B$7)/Data!B33 -> 3.144817129 | E33: 0.5 | F33: 0.4991690466 | G33: 0.9991690466 | H33: 0.827 | J33: 5.6 | K33: 1.577909453 | L33: =('32% Range'!$B$8-Data!J33)/Data!K33 -> 18.63224784 | M33: =(J33-'32% Range'!$B$7)/Data!K33 -> 1.647749809 | N33: 0.5 | O33: 0.4502979888 | P33: 0.9502979888 | Q33: 1.578 | S33: 5.6 | T33: 2.032783162 | U33: =('32% Range'!$B$8-Data!S33)/Data!T33 -> 14.46292972 | V33: =(S33-'32% Range'!$B$7)/Data!T33 -> 1.279034601 | W33: 0.5 | X33: 0.3995575642 | Y33: 0.8995575642 | Z33: 2.033
A34: 5.7 | B34: 0.8585554887 | C34: =('32% Range'!$B$8-Data!A34)/Data!B34 -> 34.1270895 | D34: =(A34-'32% Range'!$B$7)/Data!B34 -> 3.144817121 | E34: 0.5 | F34: 0.4991690466 | G34: 0.9991690466 | H34: 0.859 | J34: 5.7 | K34: 1.6385983 | L34: =('32% Range'!$B$8-Data!J34)/Data!K34 -> 17.88113658 | M34: =(J34-'32% Range'!$B$7)/Data!K34 -> 1.647749787 | N34: 0.5 | O34: 0.4502979866 | P34: 0.9502979866 | Q34: 1.639 | S34: 5.7 | T34: 2.110967129 | U34: =('32% Range'!$B$8-Data!S34)/Data!T34 -> 13.879894 | V34: =(S34-'32% Range'!$B$7)/Data!T34 -> 1.279034601 | W34: 0.5 | X34: 0.3995575642 | Y34: 0.8995575642 | Z34: 2.111
A35: 5.8 | B35: 0.8903538424 | C35: =('32% Range'!$B$8-Data!A35)/Data!B35 -> 32.79594989 | D35: =(A35-'32% Range'!$B$7)/Data!B35 -> 3.144817113 | E35: 0.5 | F35: 0.4991690466 | G35: 0.9991690466 | H35: 0.89 | J35: 5.8 | K35: 1.699287149 | L35: =('32% Range'!$B$8-Data!J35)/Data!K35 -> 17.18367611 | M35: =(J35-'32% Range'!$B$7)/Data!K35 -> 1.647749764 | N35: 0.5 | O35: 0.4502979842 | P35: 0.9502979842 | Q35: 1.699 | S35: 5.8 | T35: 2.189151097 | U35: =('32% Range'!$B$8-Data!S35)/Data!T35 -> 13.3385037 | V35: =(S35-'32% Range'!$B$7)/Data!T35 -> 1.279034601 | W35: 0.5 | X35: 0.3995575642 | Y35: 0.8995575642 | Z35: 2.189
A36: 5.9 | B36: 0.9221521965 | C36: =('32% Range'!$B$8-Data!A36)/Data!B36 -> 31.55661301 | D36: =(A36-'32% Range'!$B$7)/Data!B36 -> 3.144817104 | E36: 0.5 | F36: 0.4991690465 | G36: 0.9991690465 | H36: 0.922 | J36: 5.9 | K36: 1.759976002 | L36: =('32% Range'!$B$8-Data!J36)/Data!K36 -> 16.53431636 | M36: =(J36-'32% Range'!$B$7)/Data!K36 -> 1.64774974 | N36: 0.5 | O36: 0.4502979818 | P36: 0.9502979818 | Q36: 1.76 | S36: 5.9 | T36: 2.267335064 | U36: =('32% Range'!$B$8-Data!S36)/Data!T36 -> 12.83445066 | V36: =(S36-'32% Range'!$B$7)/Data!T36 -> 1.279034601 | W36: 0.5 | X36: 0.3995575643 | Y36: 0.8995575643 | Z36: 2.267
A37: 6 | B37: 0.9539505511 | C37: =('32% Range'!$B$8-Data!A37)/Data!B37 -> 30.39989857 | D37: =(A37-'32% Range'!$B$7)/Data!B37 -> 3.144817094 | E37: 0.5 | F37: 0.4991690465 | G37: 0.9991690465 | H37: 0.954 | J37: 6 | K37: 1.82066486 | L37: =('32% Range'!$B$8-Data!J37)/Data!K37 -> 15.92824722 | M37: =(J37-'32% Range'!$B$7)/Data!K37 -> 1.647749713 | N37: 0.5 | O37: 0.4502979789 | P37: 0.9502979789 | Q37: 1.821 | S37: 6 | T37: 2.345519031 | U37: =('32% Range'!$B$8-Data!S37)/Data!T37 -> 12.36400115 | V37: =(S37-'32% Range'!$B$7)/Data!T37 -> 1.279034602 | W37: 0.5 | X37: 0.3995575643 | Y37: 0.8995575643 | Z37: 2.346
A38: 6.1 | B38: 0.9857489065 | C38: =('32% Range'!$B$8-Data!A38)/Data!B38 -> 29.31781086 | D38: =(A38-'32% Range'!$B$7)/Data!B38 -> 3.144817082 | E38: 0.5 | F38: 0.4991690465 | G38: 0.9991690465 | H38: 0.986 | J38: 6.1 | K38: 1.881353725 | L38: =('32% Range'!$B$8-Data!J38)/Data!K38 -> 15.36127928 | M38: =(J38-'32% Range'!$B$7)/Data!K38 -> 1.647749681 | N38: 0.5 | O38: 0.4502979756 | P38: 0.9502979756 | Q38: 1.881 | S38: 6.1 | T38: 2.423702998 | U38: =('32% Range'!$B$8-Data!S38)/Data!T38 -> 11.92390323 | V38: =(S38-'32% Range'!$B$7)/Data!T38 -> 1.279034602 | W38: 0.5 | X38: 0.3995575644 | Y38: 0.8995575644 | Z38: 2.424
A39: 6.2 | B39: 1.017547263 | C39: =('32% Range'!$B$8-Data!A39)/Data!B39 -> 28.30335361 | D39: =(A39-'32% Range'!$B$7)/Data!B39 -> 3.144817068 | E39: 0.5 | F39: 0.4991690464 | G39: 0.9991690464 | H39: 1.018 | J39: 6.2 | K39: 1.942042601 | L39: =('32% Range'!$B$8-Data!J39)/Data!K39 -> 14.82974677 | M39: =(J39-'32% Range'!$B$7)/Data!K39 -> 1.647749641 | N39: 0.5 | O39: 0.4502979716 | P39: 0.9502979716 | Q39: 1.942 | S39: 6.2 | T39: 2.501886965 | U39: =('32% Range'!$B$8-Data!S39)/Data!T39 -> 11.51131142 | V39: =(S39-'32% Range'!$B$7)/Data!T39 -> 1.279034603 | W39: 0.5 | X39: 0.3995575645 | Y39: 0.8995575645 | Z39: 2.502
A40: 6.3 | B40: 1.049345459 | C40: =('32% Range'!$B$8-Data!A40)/Data!B40 -> 27.3503828 | D40: =(A40-'32% Range'!$B$7)/Data!B40 -> 3.144817534 | E40: 0.5 | F40: 0.4991690478 | G40: 0.9991690478 | H40: 1.049 | J40: 6.3 | K40: 2.002729869 | L40: =('32% Range'!$B$8-Data!J40)/Data!K40 -> 14.33043989 | M40: =(J40-'32% Range'!$B$7)/Data!K40 -> 1.647750928 | N40: 0.5 | O40: 0.4502981037 | P40: 0.9502981037 | Q40: 2.003 | S40: 6.3 | T40: 2.580070962 | U40: =('32% Range'!$B$8-Data!S40)/Data!T40 -> 11.12372505 | V40: =(S40-'32% Range'!$B$7)/Data!T40 -> 1.279034588 | W40: 0.5 | X40: 0.3995575619 | Y40: 0.8995575619 | Z40: 2.58
A41: 6.4 | B41: 1.081148523 | C41: =('32% Range'!$B$8-Data!A41)/Data!B41 -> 26.45334973 | D41: =(A41-'32% Range'!$B$7)/Data!B41 -> 3.144803815 | E41: 0.5 | F41: 0.4991690088 | G41: 0.9991690088 | H41: 1.081 | J41: 6.4 | K41: 2.063466092 | L41: =('32% Range'!$B$8-Data!J41)/Data!K41 -> 13.86017445 | M41: =(J41-'32% Range'!$B$7)/Data!K41 -> 1.647713046 | N41: 0.5 | O41: 0.4502942152 | P41: 0.9502942152 | Q41: 2.063 | S41: 6.4 | T41: 2.658254449 | U41: =('32% Range'!$B$8-Data!S41)/Data!T41 -> 10.75893995 | V41: =(S41-'32% Range'!$B$7)/Data!T41 -> 1.27903482 | W41: 0.5 | X41: 0.3995576027 | Y41: 0.8995576027 | Z41: 2.658
A42: 6.5 | B42: 1.112956586 | C42: =('32% Range'!$B$8-Data!A42)/Data!B42 -> 25.60746787 | D42: =(A42-'32% Range'!$B$7)/Data!B42 -> 3.144776755 | E42: 0.5 | F42: 0.4991689319 | G42: 0.9991689319 | H42: 1.113 | J42: 6.5 | K42: 2.124252602 | L42: =('32% Range'!$B$8-Data!J42)/Data!K42 -> 13.41648351 | M42: =(J42-'32% Range'!$B$7)/Data!K42 -> 1.647638325 | N42: 0.5 | O42: 0.4502865445 | P42: 0.9502865445 | Q42: 2.124 | S42: 6.5 | T42: 2.736437544 | U42: =('32% Range'!$B$8-Data!S42)/Data!T42 -> 10.41500109 | V42: =(S42-'32% Range'!$B$7)/Data!T42 -> 1.279035221 | W42: 0.5 | X42: 0.3995576734 | Y42: 0.8995576734 | Z42: 2.736
A43: 6.6 | B43: 1.144743548 | C43: =('32% Range'!$B$8-Data!A43)/Data!B43 -> 24.80905006 | D43: =(A43-'32% Range'!$B$7)/Data!B43 -> 3.144809163 | E43: 0.5 | F43: 0.499169024 | G43: 0.999169024 | H43: 1.145 | J43: 6.6 | K43: 2.18482687 | L43: =('32% Range'!$B$8-Data!J43)/Data!K43 -> 12.99874164 | M43: =(J43-'32% Range'!$B$7)/Data!K43 -> 1.647727813 | N43: 0.5 | O43: 0.450295731 | P43: 0.950295731 | Q43: 2.185 | S43: 6.6 | T43: 2.814622536 | U43: =('32% Range'!$B$8-Data!S43)/Data!T43 -> 10.09016294 | V43: =(S43-'32% Range'!$B$7)/Data!T43 -> 1.279034739 | W43: 0.5 | X43: 0.3995575884 | Y43: 0.8995575884 | Z43: 2.815
A44: 6.7 | B44: 1.176541525 | C44: =('32% Range'!$B$8-Data!A44)/Data!B44 -> 24.05354965 | D44: =(A44-'32% Range'!$B$7)/Data!B44 -> 3.144810379 | E44: 0.5 | F44: 0.4991690274 | G44: 0.9991690274 | H44: 1.177 | J44: 6.7 | K44: 2.245511929 | L44: =('32% Range'!$B$8-Data!J44)/Data!K44 -> 12.6029168 | M44: =(J44-'32% Range'!$B$7)/Data!K44 -> 1.647731171 | N44: 0.5 | O44: 0.4502960757 | P44: 0.9502960757 | Q44: 2.246 | S44: 6.7 | T44: 2.892806537 | U44: =('32% Range'!$B$8-Data!S44)/Data!T44 -> 9.782887184 | V44: =(S44-'32% Range'!$B$7)/Data!T44 -> 1.27903472 | W44: 0.5 | X44: 0.3995575852 | Y44: 0.8995575852 | Z44: 2.893
A45: 6.8 | B45: 1.208339029 | C45: =('32% Range'!$B$8-Data!A45)/Data!B45 -> 23.33782102 | D45: =(A45-'32% Range'!$B$7)/Data!B45 -> 3.144812762 | E45: 0.5 | F45: 0.4991690342 | G45: 0.9991690342 | H45: 1.208 | J45: 6.8 | K45: 2.306192231 | L45: =('32% Range'!$B$8-Data!J45)/Data!K45 -> 12.22794857 | M45: =(J45-'32% Range'!$B$7)/Data!K45 -> 1.647737751 | N45: 0.5 | O45: 0.4502967511 | P45: 0.9502967511 | Q45: 2.306 | S45: 6.8 | T45: 2.970990582 | U45: =('32% Range'!$B$8-Data!S45)/Data!T45 -> 9.491783707 | V45: =(S45-'32% Range'!$B$7)/Data!T45 -> 1.279034684 | W45: 0.5 | X45: 0.3995575788 | Y45: 0.8995575788 | Z45: 2.971
A46: 6.9 | B46: 1.240136026 | C46: =('32% Range'!$B$8-Data!A46)/Data!B46 -> 22.65880468 | D46: =(A46-'32% Range'!$B$7)/Data!B46 -> 3.144816308 | E46: 0.5 | F46: 0.4991690443 | G46: 0.9991690443 | H46: 1.24 | J46: 6.9 | K46: 2.366867433 | L46: =('32% Range'!$B$8-Data!J46)/Data!K46 -> 11.8722323 | M46: =(J46-'32% Range'!$B$7)/Data!K46 -> 1.647747544 | N46: 0.5 | O46: 0.4502977563 | P46: 0.9502977563 | Q46: 2.367 | S46: 6.9 | T46: 3.049174681 | U46: =('32% Range'!$B$8-Data!S46)/Data!T46 -> 9.215608464 | V46: =(S46-'32% Range'!$B$7)/Data!T46 -> 1.279034627 | W46: 0.5 | X46: 0.3995575687 | Y46: 0.8995575687 | Z46: 3.049
A47: 7 | B47: 1.271933473 | C47: =('32% Range'!$B$8-Data!A47)/Data!B47 -> 22.01372995 | D47: =(A47-'32% Range'!$B$7)/Data!B47 -> 3.144818564 | E47: 0.5 | F47: 0.4991690507 | G47: 0.9991690507 | H47: 1.272 | J47: 7 | K47: 2.427547165 | L47: =('32% Range'!$B$8-Data!J47)/Data!K47 -> 11.53427641 | M47: =(J47-'32% Range'!$B$7)/Data!K47 -> 1.647753773 | N47: 0.5 | O47: 0.4502983957 | P47: 0.9502983957 | Q47: 2.428 | S47: 7 | T47: 3.127358822 | U47: =('32% Range'!$B$8-Data!S47)/Data!T47 -> 8.953241886 | V47: =(S47-'32% Range'!$B$7)/Data!T47 -> 1.279034555 | W47: 0.5 | X47: 0.3995575561 | Y47: 0.8995575561 | Z47: 3.127
A48: 7.1 | B48: 1.303730928 | C48: =('32% Range'!$B$8-Data!A48)/Data!B48 -> 21.40012129 | D48: =(A48-'32% Range'!$B$7)/Data!B48 -> 3.144820691 | E48: 0.5 | F48: 0.4991690567 | G48: 0.9991690567 | H48: 1.304 | J48: 7.1 | K48: 2.488226976 | L48: =('32% Range'!$B$8-Data!J48)/Data!K48 -> 11.21280344 | M48: =(J48-'32% Range'!$B$7)/Data!K48 -> 1.647759646 | N48: 0.5 | O48: 0.4502989985 | P48: 0.9502989985 | Q48: 2.488 | S48: 7.1 | T48: 3.205542963 | U48: =('32% Range'!$B$8-Data!S48)/Data!T48 -> 8.703673707 | V48: =(S48-'32% Range'!$B$7)/Data!T48 -> 1.279034487 | W48: 0.5 | X48: 0.3995575442 | Y48: 0.8995575442 | Z48: 3.206
A49: 7.2 | B49: 1.335528687 | C49: =('32% Range'!$B$8-Data!A49)/Data!B49 -> 20.81572658 | D49: =(A49-'32% Range'!$B$7)/Data!B49 -> 3.144822002 | E49: 0.5 | F49: 0.4991690604 | G49: 0.9991690604 | H49: 1.336 | J49: 7.2 | K49: 2.548909843 | L49: =('32% Range'!$B$8-Data!J49)/Data!K49 -> 10.9066235 | M49: =(J49-'32% Range'!$B$7)/Data!K49 -> 1.647763263 | N49: 0.5 | O49: 0.4502993698 | P49: 0.9502993698 | Q49: 2.549 | S49: 7.2 | T49: 3.283727045 | U49: =('32% Range'!$B$8-Data!S49)/Data!T49 -> 8.465989901 | V49: =(S49-'32% Range'!$B$7)/Data!T49 -> 1.279034446 | W49: 0.5 | X49: 0.3995575368 | Y49: 0.8995575368 | Z49: 3.284
A50: 7.3 | B50: 1.367326978 | C50: =('32% Range'!$B$8-Data!A50)/Data!B50 -> 20.25850469 | D50: =(A50-'32% Range'!$B$7)/Data!B50 -> 3.144822028 | E50: 0.5 | F50: 0.4991690605 | G50: 0.9991690605 | H50: 1.367 | J50: 7.3 | K50: 2.609598055 | L50: =('32% Range'!$B$8-Data!J50)/Data!K50 -> 10.6146615 | M50: =(J50-'32% Range'!$B$7)/Data!K50 -> 1.647763337 | N50: 0.5 | O50: 0.4502993774 | P50: 0.9502993774 | Q50: 2.61 | S50: 7.3 | T50: 3.361911024 | U50: =('32% Range'!$B$8-Data!S50)/Data!T50 -> 8.239361422 | V50: =(S50-'32% Range'!$B$7)/Data!T50 -> 1.279034445 | W50: 0.5 | X50: 0.3995575367 | Y50: 0.8995575367 | Z50: 3.362
A51: 7.4 | B51: 1.399141226 | C51: =('32% Range'!$B$8-Data!A51)/Data!B51 -> 19.72638608 | D51: =(A51-'32% Range'!$B$7)/Data!B51 -> 3.144786187 | E51: 0.5 | F51: 0.4991689587 | G51: 0.9991689587 | H51: 1.399 | J51: 7.4 | K51: 2.670446774 | L51: =('32% Range'!$B$8-Data!J51)/Data!K51 -> 10.33534923 | M51: =(J51-'32% Range'!$B$7)/Data!K51 -> 1.647664369 | N51: 0.5 | O51: 0.4502892183 | P51: 0.9502892183 | Q51: 2.67 | S51: 7.4 | T51: 3.440093285 | U51: =('32% Range'!$B$8-Data!S51)/Data!T51 -> 8.023038247 | V51: =(S51-'32% Range'!$B$7)/Data!T51 -> 1.279035083 | W51: 0.5 | X51: 0.399557649 | Y51: 0.899557649 | Z51: 3.44
A52: 7.5 | B52: 1.430935459 | C52: =('32% Range'!$B$8-Data!A52)/Data!B52 -> 19.21819732 | D52: =(A52-'32% Range'!$B$7)/Data!B52 -> 3.144795925 | E52: 0.5 | F52: 0.4991689864 | G52: 0.9991689864 | H52: 1.431 | J52: 7.5 | K52: 2.731094174 | L52: =('32% Range'!$B$8-Data!J52)/Data!K52 -> 10.06922437 | M52: =(J52-'32% Range'!$B$7)/Data!K52 -> 1.64769126 | N52: 0.5 | O52: 0.4502919788 | P52: 0.9502919788 | Q52: 2.731 | S52: 7.5 | T52: 3.518277622 | U52: =('32% Range'!$B$8-Data!S52)/Data!T52 -> 7.816324622 | V52: =(S52-'32% Range'!$B$7)/Data!T52 -> 1.279034938 | W52: 0.5 | X52: 0.3995576236 | Y52: 0.8995576236 | Z52: 3.518
A53: 7.6 | B53: 1.462728535 | C53: =('32% Range'!$B$8-Data!A53)/Data!B53 -> 18.73211559 | D53: =(A53-'32% Range'!$B$7)/Data!B53 -> 3.144807726 | E53: 0.5 | F53: 0.4991690199 | G53: 0.9991690199 | H53: 1.463 | J53: 7.6 | K53: 2.791729941 | L53: =('32% Range'!$B$8-Data!J53)/Data!K53 -> 9.814702919 | M53: =(J53-'32% Range'!$B$7)/Data!K53 -> 1.647723848 | N53: 0.5 | O53: 0.450295324 | P53: 0.950295324 | Q53: 2.792 | S53: 7.6 | T53: 3.596462068 | U53: =('32% Range'!$B$8-Data!S53)/Data!T53 -> 7.618598356 | V53: =(S53-'32% Range'!$B$7)/Data!T53 -> 1.27903476 | W53: 0.5 | X53: 0.3995575923 | Y53: 0.8995575923 | Z53: 3.596
A54: 7.7 | B54: 1.494524637 | C54: =('32% Range'!$B$8-Data!A54)/Data!B54 -> 18.26667779 | D54: =(A54-'32% Range'!$B$7)/Data!B54 -> 3.14481266 | E54: 0.5 | F54: 0.4991690339 | G54: 0.9991690339 | H54: 1.495 | J54: 7.7 | K54: 2.852396142 | L54: =('32% Range'!$B$8-Data!J54)/Data!K54 -> 9.570900617 | M54: =(J54-'32% Range'!$B$7)/Data!K54 -> 1.647737469 | N54: 0.5 | O54: 0.4502967222 | P54: 0.9502967222 | Q54: 2.852 | S54: 7.7 | T54: 3.674646242 | U54: =('32% Range'!$B$8-Data!S54)/Data!T54 -> 7.429286577 | V54: =(S54-'32% Range'!$B$7)/Data!T54 -> 1.279034685 | W54: 0.5 | X54: 0.3995575791 | Y54: 0.8995575791 | Z54: 3.675
A55: 7.8 | B55: 1.526323872 | C55: =('32% Range'!$B$8-Data!A55)/Data!B55 -> 17.82059529 | D55: =(A55-'32% Range'!$B$7)/Data!B55 -> 3.144810933 | E55: 0.5 | F55: 0.499169029 | G55: 0.999169029 | H55: 1.526 | J55: 7.8 | K55: 2.91309385 | L55: =('32% Range'!$B$8-Data!J55)/Data!K55 -> 9.337151975 | M55: =(J55-'32% Range'!$B$7)/Data!K55 -> 1.647732702 | N55: 0.5 | O55: 0.4502962328 | P55: 0.9502962328 | Q55: 2.913 | S55: 7.8 | T55: 3.752830127 | U55: =('32% Range'!$B$8-Data!S55)/Data!T55 -> 7.247863367 | V55: =(S55-'32% Range'!$B$7)/Data!T55 -> 1.279034712 | W55: 0.5 | X55: 0.3995575837 | Y55: 0.8995575837 | Z55: 3.753
A56: 7.9 | B56: 1.558113926 | C56: =('32% Range'!$B$8-Data!A56)/Data!B56 -> 17.39282317 | D56: =(A56-'32% Range'!$B$7)/Data!B56 -> 3.144827806 | E56: 0.5 | F56: 0.4991690769 | G56: 0.9991690769 | H56: 1.558 | J56: 7.9 | K56: 2.973699228 | L56: =('32% Range'!$B$8-Data!J56)/Data!K56 -> 9.113228314 | M56: =(J56-'32% Range'!$B$7)/Data!K56 -> 1.647779289 | N56: 0.5 | O56: 0.4503010148 | P56: 0.9503010148 | Q56: 2.974 | S56: 7.9 | T56: 3.831015447 | U56: =('32% Range'!$B$8-Data!S56)/Data!T56 -> 7.073842529 | V56: =(S56-'32% Range'!$B$7)/Data!T56 -> 1.279034258 | W56: 0.5 | X56: 0.3995575038 | Y56: 0.8995575038 | Z56: 3.831
A57: 8 | B57: 1.589916524 | C57: =('32% Range'!$B$8-Data!A57)/Data!B57 -> 16.98202364 | D57: =(A57-'32% Range'!$B$7)/Data!B57 -> 3.144819192 | E57: 0.5 | F57: 0.4991690525 | G57: 0.9991690525 | H57: 1.59 | J57: 8 | K57: 3.034430763 | L57: =('32% Range'!$B$8-Data!J57)/Data!K57 -> 8.897879736 | M57: =(J57-'32% Range'!$B$7)/Data!K57 -> 1.647755507 | N57: 0.5 | O57: 0.4502985737 | P57: 0.9502985737 | Q57: 3.034 | S57: 8 | T57: 3.909198589 | U57: =('32% Range'!$B$8-Data!S57)/Data!T57 -> 6.90678649 | V57: =(S57-'32% Range'!$B$7)/Data!T57 -> 1.279034535 | W57: 0.5 | X57: 0.3995575526 | Y57: 0.8995575526 | Z57: 3.909
A58: 8.1 | B58: 1.621717315 | C58: =('32% Range'!$B$8-Data!A58)/Data!B58 -> 16.5873545 | D58: =(A58-'32% Range'!$B$7)/Data!B58 -> 3.144814421 | E58: 0.5 | F58: 0.4991690389 | G58: 0.9991690389 | H58: 1.622 | J58: 8.1 | K58: 3.095144124 | L58: =('32% Range'!$B$8-Data!J58)/Data!K58 -> 8.691033089 | M58: =(J58-'32% Range'!$B$7)/Data!K58 -> 1.647742333 | N58: 0.5 | O58: 0.4502972214 | P58: 0.9502972214 | Q58: 3.095 | S58: 8.1 | T58: 3.987382176 | U58: =('32% Range'!$B$8-Data!S58)/Data!T58 -> 6.746280846 | V58: =(S58-'32% Range'!$B$7)/Data!T58 -> 1.279034659 | W58: 0.5 | X58: 0.3995575744 | Y58: 0.8995575743 | Z58: 3.987
A59: 8.2 | B59: 1.653517418 | C59: =('32% Range'!$B$8-Data!A59)/Data!B59 -> 16.20787281 | D59: =(A59-'32% Range'!$B$7)/Data!B59 -> 3.144811142 | E59: 0.5 | F59: 0.4991690296 | G59: 0.9991690296 | H59: 1.654 | J59: 8.2 | K59: 3.155850565 | L59: =('32% Range'!$B$8-Data!J59)/Data!K59 -> 8.492163824 | M59: =(J59-'32% Range'!$B$7)/Data!K59 -> 1.647733279 | N59: 0.5 | O59: 0.4502962921 | P59: 0.9502962921 | Q59: 3.156 | S59: 8.2 | T59: 4.065565981 | U59: =('32% Range'!$B$8-Data!S59)/Data!T59 -> 6.591948114 | V59: =(S59-'32% Range'!$B$7)/Data!T59 -> 1.279034709 | W59: 0.5 | X59: 0.3995575832 | Y59: 0.8995575832 | Z59: 4.066
A60: 8.3 | B60: 1.685316453 | C60: =('32% Range'!$B$8-Data!A60)/Data!B60 -> 15.84272197 | D60: =(A60-'32% Range'!$B$7)/Data!B60 -> 3.14480998 | E60: 0.5 | F60: 0.4991690263 | G60: 0.9991690263 | H60: 1.685 | J60: 8.3 | K60: 3.216546264 | L60: =('32% Range'!$B$8-Data!J60)/Data!K60 -> 8.300828842 | M60: =(J60-'32% Range'!$B$7)/Data!K60 -> 1.64773007 | N60: 0.5 | O60: 0.4502959627 | P60: 0.9502959627 | Q60: 3.217 | S60: 8.3 | T60: 4.143749884 | U60: =('32% Range'!$B$8-Data!S60)/Data!T60 -> 6.443439095 | V60: =(S60-'32% Range'!$B$7)/Data!T60 -> 1.279034727 | W60: 0.4999999999 | X60: 0.3995575863 | Y60: 0.8995575863 | Z60: 4.144
A61: 8.4 | B61: 1.717114971 | C61: =('32% Range'!$B$8-Data!A61)/Data!B61 -> 15.49110016 | D61: =(A61-'32% Range'!$B$7)/Data!B61 -> 3.144809807 | E61: 0.5 | F61: 0.4991690258 | G61: 0.9991690258 | H61: 1.717 | J61: 8.4 | K61: 3.277236768 | L61: =('32% Range'!$B$8-Data!J61)/Data!K61 -> 8.116593912 | M61: =(J61-'32% Range'!$B$7)/Data!K61 -> 1.647729591 | N61: 0.5 | O61: 0.4502959135 | P61: 0.9502959135 | Q61: 3.277 | S61: 8.4 | T61: 4.221933833 | U61: =('32% Range'!$B$8-Data!S61)/Data!T61 -> 6.300430337 | V61: =(S61-'32% Range'!$B$7)/Data!T61 -> 1.27903473 | W61: 0.4999999999 | X61: 0.3995575869 | Y61: 0.8995575868 | Z61: 4.222
A62: 8.5 | B62: 1.748913078 | C62: =('32% Range'!$B$8-Data!A62)/Data!B62 -> 15.15226819 | D62: =(A62-'32% Range'!$B$7)/Data!B62 -> 3.144810379 | E62: 0.5 | F62: 0.4991690274 | G62: 0.9991690274 | H62: 1.749 | J62: 8.5 | K62: 3.337923135 | L62: =('32% Range'!$B$8-Data!J62)/Data!K62 -> 7.939068375 | M62: =(J62-'32% Range'!$B$7)/Data!K62 -> 1.647731172 | N62: 0.5 | O62: 0.4502960758 | P62: 0.9502960758 | Q62: 3.338 | S62: 8.5 | T62: 4.300117817 | U62: =('32% Range'!$B$8-Data!S62)/Data!T62 -> 6.162621846 | V62: =(S62-'32% Range'!$B$7)/Data!T62 -> 1.279034723 | W62: 0.4999999996 | X62: 0.3995575856 | Y62: 0.8995575853 | Z62: 4.3
A63: 8.6 | B63: 1.780710542 | C63: =('32% Range'!$B$8-Data!A63)/Data!B63 -> 14.8255426 | D63: =(A63-'32% Range'!$B$7)/Data!B63 -> 3.144812067 | E63: 0.5 | F63: 0.4991690322 | G63: 0.9991690322 | H63: 1.781 | J63: 8.6 | K63: 3.398603034 | L63: =('32% Range'!$B$8-Data!J63)/Data!K63 -> 7.767897498 | M63: =(J63-'32% Range'!$B$7)/Data!K63 -> 1.647735833 | N63: 0.5 | O63: 0.4502965542 | P63: 0.9502965542 | Q63: 3.399 | S63: 8.6 | T63: 4.378301855 | U63: =('32% Range'!$B$8-Data!S63)/Data!T63 -> 6.029735015 | V63: =(S63-'32% Range'!$B$7)/Data!T63 -> 1.2790347 | W63: 0.4999999992 | X63: 0.3995575817 | Y63: 0.8995575808 | Z63: 4.378
A64: 8.7 | B64: 1.812506768 | C64: =('32% Range'!$B$8-Data!A64)/Data!B64 -> 14.51029064 | D64: =(A64-'32% Range'!$B$7)/Data!B64 -> 3.144815843 | E64: 0.5 | F64: 0.499169043 | G64: 0.999169043 | H64: 1.813 | J64: 8.7 | K64: 3.459270485 | L64: =('32% Range'!$B$8-Data!J64)/Data!K64 -> 7.602759054 | M64: =(J64-'32% Range'!$B$7)/Data!K64 -> 1.647746259 | N64: 0.5 | O64: 0.4502976244 | P64: 0.9502976244 | Q64: 3.459 | S64: 8.7 | T64: 4.456485997 | U64: =('32% Range'!$B$8-Data!S64)/Data!T64 -> 5.901510746 | V64: =(S64-'32% Range'!$B$7)/Data!T64 -> 1.279034648 | W64: 0.4999999982 | X64: 0.3995575726 | Y64: 0.8995575708 | Z64: 4.456
A65: 8.8 | B65: 1.84430289 | C65: =('32% Range'!$B$8-Data!A65)/Data!B65 -> 14.20590953 | D65: =(A65-'32% Range'!$B$7)/Data!B65 -> 3.144819666 | E65: 0.5 | F65: 0.4991690538 | G65: 0.9991690538 | H65: 1.844 | J65: 8.8 | K65: 3.519936892 | L65: =('32% Range'!$B$8-Data!J65)/Data!K65 -> 7.443315265 | M65: =(J65-'32% Range'!$B$7)/Data!K65 -> 1.647756814 | N65: 0.5 | O65: 0.4502987079 | P65: 0.9502987079 | Q65: 3.52 | S65: 8.8 | T65: 4.534670333 | U65: =('32% Range'!$B$8-Data!S65)/Data!T65 -> 5.777707766 | V65: =(S65-'32% Range'!$B$7)/Data!T65 -> 1.279034544 | W65: 0.4999999962 | X65: 0.3995575541 | Y65: 0.8995575503 | Z65: 4.535
A66: 8.9 | B66: 1.876097164 | C66: =('32% Range'!$B$8-Data!A66)/Data!B66 -> 13.91185941 | D66: =(A66-'32% Range'!$B$7)/Data!B66 -> 3.144826458 | E66: 0.5 | F66: 0.4991690731 | G66: 0.9991690731 | H66: 1.876 | J66: 8.9 | K66: 3.580584711 | L66: =('32% Range'!$B$8-Data!J66)/Data!K66 -> 7.289312252 | M66: =(J66-'32% Range'!$B$7)/Data!K66 -> 1.647775566 | N66: 0.5 | O66: 0.4503006327 | P66: 0.9503006327 | Q66: 3.581 | S66: 8.9 | T66: 4.612855013 | U66: =('32% Range'!$B$8-Data!S66)/Data!T66 -> 5.658101095 | V66: =(S66-'32% Range'!$B$7)/Data!T66 -> 1.279034347 | W66: 0.4999999923 | X66: 0.3995575195 | Y66: 0.8995575119 | Z66: 4.613
A67: 9 | B67: 1.907888435 | C67: =('32% Range'!$B$8-Data!A67)/Data!B67 -> 13.62763122 | D67: =(A67-'32% Range'!$B$7)/Data!B67 -> 3.144837974 | E67: 0.5 | F67: 0.4991691058 | G67: 0.9991691058 | H67: 1.908 | J67: 9 | K67: 3.641202323 | L67: =('32% Range'!$B$8-Data!J67)/Data!K67 -> 7.140498576 | M67: =(J67-'32% Range'!$B$7)/Data!K67 -> 1.647807364 | N67: 0.5 | O67: 0.4503038963 | P67: 0.9503038963 | Q67: 3.641 | S67: 9 | T67: 4.691040239 | U67: =('32% Range'!$B$8-Data!S67)/Data!T67 -> 5.542480702 | V67: =(S67-'32% Range'!$B$7)/Data!T67 -> 1.279034008 | W67: 0.4999999851 | X67: 0.3995574598 | Y67: 0.8995574449 | Z67: 4.691
A68: 9.1 | B68: 1.939702671 | C68: =('32% Range'!$B$8-Data!A68)/Data!B68 -> 13.35256191 | D68: =(A68-'32% Range'!$B$7)/Data!B68 -> 3.144811878 | E68: 0.5 | F68: 0.4991690317 | G68: 0.9991690317 | H68: 1.94 | J68: 9.1 | K68: 3.702050908 | L68: =('32% Range'!$B$8-Data!J68)/Data!K68 -> 6.996122054 | M68: =(J68-'32% Range'!$B$7)/Data!K68 -> 1.64773531 | N68: 0.5 | O68: 0.4502965006 | P68: 0.9502965006 | Q68: 3.702 | S68: 9.1 | T68: 4.769221092 | U68: =('32% Range'!$B$8-Data!S68)/Data!T68 -> 5.430656181 | V68: =(S68-'32% Range'!$B$7)/Data!T68 -> 1.279034853 | W68: 0.4999999719 | X68: 0.3995576086 | Y68: 0.8995575806 | Z68: 4.769
A69: 9.2 | B69: 1.971500167 | C69: =('32% Range'!$B$8-Data!A69)/Data!B69 -> 13.08648127 | D69: =(A69-'32% Range'!$B$7)/Data!B69 -> 3.144813328 | E69: 0.5 | F69: 0.4991690358 | G69: 0.9991690358 | H69: 1.971 | J69: 9.2 | K69: 3.762731123 | L69: =('32% Range'!$B$8-Data!J69)/Data!K69 -> 6.856721663 | M69: =(J69-'32% Range'!$B$7)/Data!K69 -> 1.647739314 | N69: 0.5 | O69: 0.4502969116 | P69: 0.9502969116 | Q69: 3.763 | S69: 9.2 | T69: 4.847404663 | U69: =('32% Range'!$B$8-Data!S69)/Data!T69 -> 5.322435776 | V69: =(S69-'32% Range'!$B$7)/Data!T69 -> 1.279034954 | W69: 0.4999999488 | X69: 0.3995576264 | Y69: 0.8995575752 | Z69: 4.847
A70: 9.3 | B70: 2.00329977 | C70: =('32% Range'!$B$8-Data!A70)/Data!B70 -> 12.8288339 | D70: =(A70-'32% Range'!$B$7)/Data!B70 -> 3.144811423 | E70: 0.5 | F70: 0.4991690304 | G70: 0.9991690304 | H70: 2.003 | J70: 9.3 | K70: 3.823432536 | L70: =('32% Range'!$B$8-Data!J70)/Data!K70 -> 6.721708768 | M70: =(J70-'32% Range'!$B$7)/Data!K70 -> 1.647734056 | N70: 0.5 | O70: 0.4502963719 | P70: 0.9502963718 | Q70: 3.823 | S70: 9.3 | T70: 4.925587698 | U70: =('32% Range'!$B$8-Data!S70)/Data!T70 -> 5.217651491 | V70: =(S70-'32% Range'!$B$7)/Data!T70 -> 1.279035191 | W70: 0.4999999094 | X70: 0.399557668 | Y70: 0.8995575774 | Z70: 4.926
A71: 9.4 | B71: 2.035104453 | C71: =('32% Range'!$B$8-Data!A71)/Data!B71 -> 12.57920691 | D71: =(A71-'32% Range'!$B$7)/Data!B71 -> 3.144801728 | E71: 0.5 | F71: 0.4991690029 | G71: 0.9991690029 | H71: 2.035 | J71: 9.4 | K71: 3.884185049 | L71: =('32% Range'!$B$8-Data!J71)/Data!K71 -> 6.590829138 | M71: =(J71-'32% Range'!$B$7)/Data!K71 -> 1.647707284 | N71: 0.5 | O71: 0.4502936237 | P71: 0.9502936237 | Q71: 3.884 | S71: 9.4 | T71: 5.003769717 | U71: =('32% Range'!$B$8-Data!S71)/Data!T71 -> 5.116142718 | V71: =(S71-'32% Range'!$B$7)/Data!T71 -> 1.279035679 | W71: 0.4999998441 | X71: 0.3995577541 | Y71: 0.8995575982 | Z71: 5.004
A72: 9.5 | B72: 2.066903622 | C72: =('32% Range'!$B$8-Data!A72)/Data!B72 -> 12.33729514 | D72: =(A72-'32% Range'!$B$7)/Data!B72 -> 3.144800721 | E72: =NORMSDIST(C72)-0.5 -> 0.5 | F72: =NORMSDIST(D72)-0.5 -> 0.499169 | G72: =E72+F72 -> 0.999169 | H72: 2.067 | J72: 9.5 | K72: 3.944882091 | L72: =('32% Range'!$B$8-Data!J72)/Data!K72 -> 6.464071527 | M72: =(J72-'32% Range'!$B$7)/Data!K72 -> 1.647704507 | N72: =NORMSDIST(L72)-0.5 -> 0.4999999999 | O72: =NORMSDIST(M72)-0.5 -> 0.4502933386 | P72: =N72+O72 -> 0.9502933386 | Q72: 3.945 | S72: 9.5 | T72: 5.081951357 | U72: =('32% Range'!$B$8-Data!S72)/Data!T72 -> 5.017757592 | V72: =(S72-'32% Range'!$B$7)/Data!T72 -> 1.279036249 | W72: =NORMSDIST(U72)-0.5 -> 0.4999997386 | X72: =NORMSDIST(V72)-0.5 -> 0.3995578543 | Y72: =W72+X72 -> 0.8995575929 | Z72: 5.082
A73: 9.6 | B73: 2.098700596 | C73: =('32% Range'!$B$8-Data!A73)/Data!B73 -> 12.10272682 | D73: =(A73-'32% Range'!$B$7)/Data!B73 -> 3.144803032 | E73: 0.5 | F73: 0.4991690066 | G73: 0.9991690066 | H73: 2.099 | J73: 9.6 | K73: 4.005557066 | L73: =('32% Range'!$B$8-Data!J73)/Data!K73 -> 6.341190396 | M73: =(J73-'32% Range'!$B$7)/Data!K73 -> 1.64771089 | N73: 0.4999999999 | O73: 0.4502939939 | P73: 0.9502939938 | Q73: 4.006 | S73: 9.6 | T73: 5.160131817 | U73: =('32% Range'!$B$8-Data!S73)/Data!T73 -> 4.922354874 | V73: =(S73-'32% Range'!$B$7)/Data!T73 -> 1.279037093 | W73: 0.4999995725 | X73: 0.399558003 | Y73: 0.8995575755 | Z73: 5.16
A74: =A73+0.1 -> 9.7 | B74: 2.130494072 | C74: =('32% Range'!$B$8-Data!A74)/Data!B74 -> 11.87517972 | D74: =(A74-'32% Range'!$B$7)/Data!B74 -> 3.14481044 | E74: 0.5 | F74: 0.4991690276 | G74: 0.9991690276 | H74: 2.13 | J74: =A73+0.1 -> 9.7 | K74: 4.06619684 | L74: =('32% Range'!$B$8-Data!J74)/Data!K74 -> 6.222030314 | M74: =(J74-'32% Range'!$B$7)/Data!K74 -> 1.647731348 | N74: 0.4999999998 | O74: 0.4502960939 | P74: 0.9502960936 | Q74: 4.066 | S74: =S73+0.1 -> 9.7 | T74: 5.238310489 | U74: =('32% Range'!$B$8-Data!S74)/Data!T74 -> 4.829801528 | V74: =(S74-'32% Range'!$B$7)/Data!T74 -> 1.279038349 | W74: 0.4999993167 | X74: 0.3995582241 | Y74: 0.8995575408 | Z74: 5.238
A75: 9.8 | B75: 2.162285506 | C75: =('32% Range'!$B$8-Data!A75)/Data!B75 -> 11.65433516 | D75: =(A75-'32% Range'!$B$7)/Data!B75 -> 3.144820599 | E75: 0.5 | F75: 0.4991690565 | G75: 0.9991690565 | H75: 2.162 | J75: 9.8 | K75: 4.126816065 | L75: =('32% Range'!$B$8-Data!J75)/Data!K75 -> 6.106402516 | M75: =(J75-'32% Range'!$B$7)/Data!K75 -> 1.647759409 | N75: 0.4999999995 | O75: 0.4502989742 | P75: 0.9502989737 | Q75: 4.127 | S75: 9.8 | T75: 5.316486491 | U75: =('32% Range'!$B$8-Data!S75)/Data!T75 -> 4.739972544 | V75: =(S75-'32% Range'!$B$7)/Data!T75 -> 1.27904021 | W75: 0.4999989313 | X75: 0.3995585518 | Y75: 0.8995574831 | Z75: 5.316
A76: 9.9 | B76: 2.194075384 | C76: =('32% Range'!$B$8-Data!A76)/Data!B76 -> 11.43989864 | D76: =(A76-'32% Range'!$B$7)/Data!B76 -> 3.144832694 | E76: 0.5 | F76: 0.4991690908 | G76: 0.9991690908 | H76: 2.194 | J76: 9.9 | K76: 4.187419627 | L76: =('32% Range'!$B$8-Data!J76)/Data!K76 -> 5.9941449 | M76: =(J76-'32% Range'!$B$7)/Data!K76 -> 1.647792821 | N76: 0.499999999 | O76: 0.4503024037 | P76: 0.9503024026 | Q76: 4.188 | S76: 9.9 | T76: 5.394658536 | U76: =('32% Range'!$B$8-Data!S76)/Data!T76 -> 4.652750463 | V76: =(S76-'32% Range'!$B$7)/Data!T76 -> 1.279042956 | W76: 0.4999983623 | X76: 0.3995590352 | Y76: 0.8995573975 | Z76: 5.395
A77: 10 | B77: 2.225894879 | C77: =('32% Range'!$B$8-Data!A77)/Data!B77 -> 11.23143785 | D77: =(A77-'32% Range'!$B$7)/Data!B77 -> 3.144802598 | E77: 0.5 | F77: 0.4991690053 | G77: 0.9991690053 | H77: 2.226 | J77: 10 | K77: 4.248321018 | L77: =('32% Range'!$B$8-Data!J77)/Data!K77 -> 5.88467771 | M77: =(J77-'32% Range'!$B$7)/Data!K77 -> 1.647709759 | N77: 0.499999998 | O77: 0.4502938777 | P77: 0.9502938757 | Q77: 4.248 | S77: 10 | T77: 5.472819317 | U77: =('32% Range'!$B$8-Data!S77)/Data!T77 -> 4.568029484 | V77: =(S77-'32% Range'!$B$7)/Data!T77 -> 1.279048255 | W77: 0.4999975383 | X77: 0.3995599682 | Y77: 0.8995575066 | Z77: 5.473
A78: 10.1 | B78: 2.257691856 | C78: =('32% Range'!$B$8-Data!A78)/Data!B78 -> 11.02896303 | D78: =(A78-'32% Range'!$B$7)/Data!B78 -> 3.144804718 | E78: 0.5 | F78: 0.4991690114 | G78: 0.9991690114 | H78: 2.258 | J78: 10.1 | K78: 4.30899584 | L78: =('32% Range'!$B$8-Data!J78)/Data!K78 -> 5.778608502 | M78: =(J78-'32% Range'!$B$7)/Data!K78 -> 1.647715677 | N78: 0.4999999962 | O78: 0.4502944853 | P78: 0.9502944815 | Q78: 4.309 | S78: 10.1 | T78: 5.550973753 | U78: =('32% Range'!$B$8-Data!S78)/Data!T78 -> 4.485699466 | V78: =(S78-'32% Range'!$B$7)/Data!T78 -> 1.279054868 | W78: 0.4999963662 | X78: 0.3995611324 | Y78: 0.8995574987 | Z78: 5.551
A79: 10.2 | B79: 2.289466579 | C79: =('32% Range'!$B$8-Data!A79)/Data!B79 -> 10.83221752 | D79: =(A79-'32% Range'!$B$7)/Data!B79 -> 3.144837346 | E79: 0.5 | F79: 0.499169104 | G79: 0.999169104 | H79: 2.289 | J79: 10.2 | K79: 4.369446725 | L79: =('32% Range'!$B$8-Data!J79)/Data!K79 -> 5.675775804 | M79: =(J79-'32% Range'!$B$7)/Data!K79 -> 1.647805878 | N79: 0.4999999931 | O79: 0.4503037438 | P79: 0.9503037369 | Q79: 4.37 | S79: 10.2 | T79: 5.629118271 | U79: =('32% Range'!$B$8-Data!S79)/Data!T79 -> 4.40566334 | V79: =(S79-'32% Range'!$B$7)/Data!T79 -> 1.27906355 | W79: 0.499994727 | X79: 0.3995626611 | Y79: 0.899557388 | Z79: 5.629
A80: 10.3 | B80: 2.321269425 | C80: =('32% Range'!$B$8-Data!A80)/Data!B80 -> 10.64072948 | D80: =(A80-'32% Range'!$B$7)/Data!B80 -> 3.14483098 | E80: 0.5 | F80: 0.4991690859 | G80: 0.9991690859 | H80: 2.321 | J80: 10.3 | K80: 4.430180193 | L80: =('32% Range'!$B$8-Data!J80)/Data!K80 -> 5.575393985 | M80: =(J80-'32% Range'!$B$7)/Data!K80 -> 1.647788506 | N80: 0.4999999877 | O80: 0.4503019607 | P80: 0.9503019484 | Q80: 4.43 | S80: 10.3 | T80: 5.707240319 | U80: =('32% Range'!$B$8-Data!S80)/Data!T80 -> 4.32783598 | V80: =(S80-'32% Range'!$B$7)/Data!T80 -> 1.279077031 | W80: 0.4999924709 | X80: 0.3995650344 | Y80: 0.8995575053 | Z80: 5.707
A81: 10.4 | B81: 2.353071331 | C81: =('32% Range'!$B$8-Data!A81)/Data!B81 -> 10.45442171 | D81: =(A81-'32% Range'!$B$7)/Data!B81 -> 3.144826042 | E81: 0.5 | F81: 0.4991690719 | G81: 0.9991690719 | H81: 2.353 | J81: 10.4 | K81: 4.490903821 | L81: =('32% Range'!$B$8-Data!J81)/Data!K81 -> 5.477739222 | M81: =(J81-'32% Range'!$B$7)/Data!K81 -> 1.647775213 | N81: 0.4999999785 | O81: 0.4503005964 | P81: 0.9503005748 | Q81: 4.491 | S81: 10.4 | T81: 5.785338003 | U81: =('32% Range'!$B$8-Data!S81)/Data!T81 -> 4.252128395 | V81: =(S81-'32% Range'!$B$7)/Data!T81 -> 1.279095534 | W81: 0.4999894126 | X81: 0.3995682919 | Y81: 0.8995577044 | Z81: 5.785
A82: 10.5 | B82: 2.384872513 | C82: =('32% Range'!$B$8-Data!A82)/Data!B82 -> 10.27308582 | D82: =(A82-'32% Range'!$B$7)/Data!B82 -> 3.144822191 | E82: 0.5 | F82: 0.499169061 | G82: 0.999169061 | H82: 2.385 | J82: 10.5 | K82: 4.551619512 | L82: =('32% Range'!$B$8-Data!J82)/Data!K82 -> 5.382699485 | M82: =(J82-'32% Range'!$B$7)/Data!K82 -> 1.647765148 | N82: 0.4999999633 | O82: 0.4502995633 | P82: 0.9502995266 | Q82: 4.552 | S82: 10.5 | T82: 5.863403075 | U82: =('32% Range'!$B$8-Data!S82)/Data!T82 -> 4.178460817 | V82: =(S82-'32% Range'!$B$7)/Data!T82 -> 1.279120658 | W82: 0.4999853256 | X82: 0.399572715 | Y82: 0.8995580406 | Z82: 5.863
A83: =A82+0.1 -> 10.6 | B83: 2.416673172 | C83: =('32% Range'!$B$8-Data!A83)/Data!B83 -> 10.09652455 | D83: =(A83-'32% Range'!$B$7)/Data!B83 -> 3.144819121 | E83: 0.5 | F83: 0.4991690523 | G83: 0.9991690523 | H83: 2.417 | J83: 10.6 | K83: 4.612328916 | L83: =('32% Range'!$B$8-Data!J83)/Data!K83 -> 5.290169119 | M83: =(J83-'32% Range'!$B$7)/Data!K83 -> 1.647757594 | N83: 0.4999999389 | O83: 0.450298788 | P83: 0.9502987269 | Q83: 4.612 | S83: 10.6 | T83: 5.941425153 | U83: =('32% Range'!$B$8-Data!S83)/Data!T83 -> 4.106758794 | V83: =(S83-'32% Range'!$B$7)/Data!T83 -> 1.279154379 | W83: 0.4999799375 | X83: 0.3995786512 | Y83: 0.8995585887 | Z83: 5.941
A84: =A83+0.1 -> 10.7 | B84: 2.4484735 | C84: =('32% Range'!$B$8-Data!A84)/Data!B84 -> 9.924550949 | D84: =(A84-'32% Range'!$B$7)/Data!B84 -> 3.144816556 | E84: 0.5 | F84: 0.499169045 | G84: 0.999169045 | H84: 2.448 | J84: 10.7 | K84: 4.673033407 | L84: =('32% Range'!$B$8-Data!J84)/Data!K84 -> 5.200048423 | M84: =(J84-'32% Range'!$B$7)/Data!K84 -> 1.647751969 | N84: 0.4999999004 | O84: 0.4502982106 | P84: 0.950298111 | Q84: 4.673 | S84: 10.7 | T84: 6.01939135 | U84: =('32% Range'!$B$8-Data!S84)/Data!T84 -> 4.036953005 | V84: =(S84-'32% Range'!$B$7)/Data!T84 -> 1.2791991 | W84: 0.499972925 | X84: 0.3995865237 | Y84: 0.8995594488 | Z84: 6.019
A85: 10.8 | B85: 2.480273691 | C85: =('32% Range'!$B$8-Data!A85)/Data!B85 -> 9.756987741 | D85: =(A85-'32% Range'!$B$7)/Data!B85 -> 3.144814231 | E85: 0.5 | F85: 0.4991690384 | G85: 0.9991690384 | H85: 2.48 | J85: 10.8 | K85: 4.733734094 | L85: =('32% Range'!$B$8-Data!J85)/Data!K85 -> 5.112243215 | M85: =(J85-'32% Range'!$B$7)/Data!K85 -> 1.647747813 | N85: 0.4999998408 | O85: 0.4502977839 | P85: 0.9502976248 | Q85: 4.734 | S85: 10.8 | T85: 6.097285862 | U85: =('32% Range'!$B$8-Data!S85)/Data!T85 -> 3.968979075 | V85: =(S85-'32% Range'!$B$7)/Data!T85 -> 1.279257718 | W85: 0.4999639094 | X85: 0.3995968417 | Y85: 0.8995607511 | Z85: 6.097
A86: 10.9 | B86: 2.512074642 | C86: =('32% Range'!$B$8-Data!A86)/Data!B86 -> 9.593663975 | D86: =(A86-'32% Range'!$B$7)/Data!B86 -> 3.144811013 | E86: 0.5 | F86: 0.4991690292 | G86: 0.9991690292 | H86: 2.512 | J86: 10.9 | K86: 4.794438824 | L86: =('32% Range'!$B$8-Data!J86)/Data!K86 -> 5.026657109 | M86: =(J86-'32% Range'!$B$7)/Data!K86 -> 1.647742372 | N86: 0.4999997504 | O86: 0.4502972254 | P86: 0.9502969759 | Q86: 4.794 | S86: 10.9 | T86: 6.175089553 | U86: =('32% Range'!$B$8-Data!S86)/Data!T86 -> 3.902777408 | V86: =(S86-'32% Range'!$B$7)/Data!T86 -> 1.279333673 | W86: 0.4999524524 | X86: 0.3996102102 | Y86: 0.8995626626 | Z86: 6.175
A87: 11 | B87: 2.543874003 | C87: =('32% Range'!$B$8-Data!A87)/Data!B87 -> 9.434429526 | D87: =(A87-'32% Range'!$B$7)/Data!B87 -> 3.144809842 | E87: 0.5 | F87: 0.4991690259 | G87: 0.9991690259 | H87: 2.544 | J87: 11 | K87: 4.855122299 | L87: =('32% Range'!$B$8-Data!J87)/Data!K87 -> 4.943232842 | M87: =(J87-'32% Range'!$B$7)/Data!K87 -> 1.647744281 | N87: 0.4999996158 | O87: 0.4502974214 | P87: 0.9502970372 | Q87: 4.855 | S87: 11 | T87: 6.252779607 | U87: =('32% Range'!$B$8-Data!S87)/Data!T87 -> 3.838292969 | V87: =(S87-'32% Range'!$B$7)/Data!T87 -> 1.27943099 | W87: 0.4999380537 | X87: 0.3996273366 | Y87: 0.8995653903 | Z87: 6.252
A88: 11.1 | B88: 2.57567397 | C88: =('32% Range'!$B$8-Data!A88)/Data!B88 -> 9.279124719 | D88: =(A88-'32% Range'!$B$7)/Data!B88 -> 3.144807959 | E88: 0.5 | F88: 0.4991690206 | G88: 0.9991690206 | H88: 2.576 | J88: 11.1 | K88: 4.915804344 | L88: =('32% Range'!$B$8-Data!J88)/Data!K88 -> 4.861869661 | M88: =(J88-'32% Range'!$B$7)/Data!K88 -> 1.647746622 | N88: 0.4999994186 | O88: 0.4502976617 | P88: 0.9502970802 | Q88: 4.916 | S88: 11.1 | T88: 6.330328851 | U88: =('32% Range'!$B$8-Data!S88)/Data!T88 -> 3.775475265 | V88: =(S88-'32% Range'!$B$7)/Data!T88 -> 1.279554379 | W88: 0.4999201486 | X88: 0.3996490483 | Y88: 0.8995691969 | Z88: 6.33
A89: 11.2 | B89: 2.607476951 | C89: =('32% Range'!$B$8-Data!A89)/Data!B89 -> 9.127597463 | D89: =(A89-'32% Range'!$B$7)/Data!B89 -> 3.144802487 | E89: 0.5 | F89: 0.499169005 | G89: 0.999169005 | H89: 2.607 | J89: 11.2 | K89: 4.976506074 | L89: =('32% Range'!$B$8-Data!J89)/Data!K89 -> 4.782471807 | M89: =(J89-'32% Range'!$B$7)/Data!K89 -> 1.647742387 | N89: 0.4999991342 | O89: 0.450297227 | P89: 0.9502963613 | Q89: 4.976 | S89: 11.2 | T89: 6.407705649 | U89: =('32% Range'!$B$8-Data!S89)/Data!T89 -> 3.714277981 | V89: =(S89-'32% Range'!$B$7)/Data!T89 -> 1.27970922 | W89: 0.4998981077 | X89: 0.3996762897 | Y89: 0.8995743973 | Z89: 6.407
A90: 11.3 | B90: 2.63928181 | C90: =('32% Range'!$B$8-Data!A90)/Data!B90 -> 8.979715585 | D90: =(A90-'32% Range'!$B$7)/Data!B90 -> 3.14479491 | E90: 0.5 | F90: 0.4991689835 | G90: 0.9991689835 | H90: 2.639 | J90: 11.3 | K90: 5.037211962 | L90: =('32% Range'!$B$8-Data!J90)/Data!K90 -> 4.704983665 | M90: =(J90-'32% Range'!$B$7)/Data!K90 -> 1.647736895 | N90: 0.4999987306 | O90: 0.4502966633 | P90: 0.9502953939 | Q90: 5.037 | S90: 11.3 | T90: 6.484873583 | U90: =('32% Range'!$B$8-Data!S90)/Data!T90 -> 3.654658753 | V90: =(S90-'32% Range'!$B$7)/Data!T90 -> 1.279901588 | W90: 0.4998712379 | X90: 0.3997101255 | Y90: 0.8995813634 | Z90: 6.483
A91: 11.4 | B91: 2.671088388 | C91: =('32% Range'!$B$8-Data!A91)/Data!B91 -> 8.835349705 | D91: =(A91-'32% Range'!$B$7)/Data!B91 -> 3.144785488 | E91: 0.5 | F91: 0.4991689567 | G91: 0.9991689567 | H91: 2.671 | J91: 11.4 | K91: 5.097915036 | L91: =('32% Range'!$B$8-Data!J91)/Data!K91 -> 4.629343532 | M91: =(J91-'32% Range'!$B$7)/Data!K91 -> 1.647732444 | N91: 0.4999981659 | O91: 0.4502962063 | P91: 0.9502943722 | Q91: 5.098 | S91: 11.4 | T91: 6.561791 | U91: =('32% Range'!$B$8-Data!S91)/Data!T91 -> 3.596579044 | V91: =(S91-'32% Range'!$B$7)/Data!T91 -> 1.280138304 | W91: 0.4998387852 | X91: 0.3997517503 | Y91: 0.8995905354 | Z91: 6.559
A92: 11.5 | B92: 2.702874036 | C92: =('32% Range'!$B$8-Data!A92)/Data!B92 -> 8.694448829 | D92: =(A92-'32% Range'!$B$7)/Data!B92 -> 3.14480064 | E92: 0.5 | F92: 0.4991689998 | G92: 0.9991689998 | H92: 2.703 | J92: 11.5 | K92: 5.158380892 | L92: =('32% Range'!$B$8-Data!J92)/Data!K92 -> 4.555693054 | M92: =(J92-'32% Range'!$B$7)/Data!K92 -> 1.647803871 | N92: 0.4999973893 | O92: 0.4503035377 | P92: 0.9503009271 | Q92: 5.159 | S92: 11.5 | T92: 6.638409441 | U92: =('32% Range'!$B$8-Data!S92)/Data!T92 -> 3.540004607 | V92: =(S92-'32% Range'!$B$7)/Data!T92 -> 1.280427198 | W92: 0.49979994 | X92: 0.3998025332 | Y92: 0.8996024732 | Z92: 6.635
A93: 11.6 | B93: 2.734692588 | C93: =('32% Range'!$B$8-Data!A93)/Data!B93 -> 8.556720453 | D93: =(A93-'32% Range'!$B$7)/Data!B93 -> 3.144777602 | E93: 0.5 | F93: 0.4991689343 | G93: 0.9991689343 | H93: 2.735 | J93: 11.6 | K93: 5.219141488 | L93: =('32% Range'!$B$8-Data!J93)/Data!K93 -> 4.483496003 | M93: =(J93-'32% Range'!$B$7)/Data!K93 -> 1.647780582 | N93: 0.4999963285 | O93: 0.4503011475 | P93: 0.950297476 | Q93: 5.219 | S93: 11.6 | T93: 6.714679135 | U93: =('32% Range'!$B$8-Data!S93)/Data!T93 -> 3.484902187 | V93: =(S93-'32% Range'!$B$7)/Data!T93 -> 1.280776017 | W93: 0.4997538415 | X93: 0.3998638249 | Y93: 0.8996176665 | Z93: 6.708
A94: 11.7 | B94: 2.766513565 | C94: =('32% Range'!$B$8-Data!A94)/Data!B94 -> 8.422152812 | D94: =(A94-'32% Range'!$B$7)/Data!B94 -> 3.144752338 | E94: 0.5 | F94: 0.4991688626 | G94: 0.9991688626 | H94: 2.767 | J94: 11.7 | K94: 5.279879579 | L94: =('32% Range'!$B$8-Data!J94)/Data!K94 -> 4.412979435 | M94: =(J94-'32% Range'!$B$7)/Data!K94 -> 1.647764853 | N94: 0.4999949021 | O94: 0.450299533 | P94: 0.9502944351 | Q94: 5.28 | S94: 11.7 | T94: 6.790541053 | U94: =('32% Range'!$B$8-Data!S94)/Data!T94 -> 3.431243522 | V94: =(S94-'32% Range'!$B$7)/Data!T94 -> 1.281193933 | W94: 0.4996995895 | X94: 0.3999372217 | Y94: 0.8996368112 | Z94: 6.781
A95: 11.8 | B95: 2.798338946 | C95: =('32% Range'!$B$8-Data!A95)/Data!B95 -> 8.290632568 | D95: =(A95-'32% Range'!$B$7)/Data!B95 -> 3.144722698 | E95: 0.5 | F95: 0.4991687784 | G95: 0.9991687784 | H95: 2.798 | J95: 11.8 | K95: 5.340601403 | L95: =('32% Range'!$B$8-Data!J95)/Data!K95 -> 4.344080048 | M95: =(J95-'32% Range'!$B$7)/Data!K95 -> 1.647754501 | N95: 0.499993007 | O95: 0.4502984704 | P95: 0.9502914774 | Q95: 5.341 | S95: 11.8 | T95: 6.865931957 | U95: =('32% Range'!$B$8-Data!S95)/Data!T95 -> 3.379002318 | V95: =(S95-'32% Range'!$B$7)/Data!T95 -> 1.281690535 | W95: 0.499636253 | X95: 0.4000243867 | Y95: 0.8996606397 | Z95: 6.853
A96: 11.9 | B96: 2.830170885 | C96: =('32% Range'!$B$8-Data!A96)/Data!B96 -> 8.162051317 | D96: =(A96-'32% Range'!$B$7)/Data!B96 -> 3.144686438 | E96: 0.5 | F96: 0.4991686753 | G96: 0.9991686753 | H96: 2.83 | J96: 11.9 | K96: 5.401311935 | L96: =('32% Range'!$B$8-Data!J96)/Data!K96 -> 4.27673874 | M96: =(J96-'32% Range'!$B$7)/Data!K96 -> 1.647747826 | N96: 0.4999905174 | O96: 0.4502977853 | P96: 0.9502883027 | Q96: 5.401 | S96: 11.9 | T96: 6.909605548 | U96: =('32% Range'!$B$8-Data!S96)/Data!T96 -> 3.343172029 | V96: =(S96-'32% Range'!$B$7)/Data!T96 -> 1.288061951 | W96: 0.4995858673 | X96: 0.4011378005 | Y96: 0.9007236678 | Z96: 6.925
A97: 12 | B97: 2.862012957 | C97: =('32% Range'!$B$8-Data!A97)/Data!B97 -> 8.036301843 | D97: =(A97-'32% Range'!$B$7)/Data!B97 -> 3.144639852 | E97: 0.5 | F97: 0.499168543 | G97: 0.999168543 | H97: 2.862 | J97: 12 | K97: 5.462026912 | L97: =('32% Range'!$B$8-Data!J97)/Data!K97 -> 4.210891006 | M97: =(J97-'32% Range'!$B$7)/Data!K97 -> 1.647739959 | N97: 0.4999872817 | O97: 0.4502969778 | P97: 0.9502842595 | Q97: 5.462 | S97: 12 | T97: 6.981396787 | U97: =('32% Range'!$B$8-Data!S97)/Data!T97 -> 3.294469675 | V97: =(S97-'32% Range'!$B$7)/Data!T97 -> 1.289140307 | W97: 0.4995069621 | X97: 0.4013253436 | Y97: 0.9008323057 | Z97: 6.999
A98: 12.1 | B98: 2.893866345 | C98: =('32% Range'!$B$8-Data!A98)/Data!B98 -> 7.913288753 | D98: =(A98-'32% Range'!$B$7)/Data!B98 -> 3.144581994 | E98: 0.5 | F98: 0.4991683785 | G98: 0.9991683785 | H98: 2.894 | J98: 12.1 | K98: 5.522734283 | L98: =('32% Range'!$B$8-Data!J98)/Data!K98 -> 4.146496794 | M98: =(J98-'32% Range'!$B$7)/Data!K98 -> 1.647734534 | N98: 0.49998312 | O98: 0.4502964209 | P98: 0.9502795408 | Q98: 5.523 | S98: 12.1 | T98: 7.052320964 | U98: =('32% Range'!$B$8-Data!S98)/Data!T98 -> 3.247157938 | V98: =(S98-'32% Range'!$B$7)/Data!T98 -> 1.290355338 | W98: 0.4994171816 | X98: 0.4015363443 | Y98: 0.9009535258 | Z98: 7.075
A99: 12.2 | B99: 2.925733945 | C99: =('32% Range'!$B$8-Data!A99)/Data!B99 -> 7.792916385 | D99: =(A99-'32% Range'!$B$7)/Data!B99 -> 3.14451012 | E99: 0.5 | F99: 0.4991681742 | G99: 0.9991681742 | H99: 2.926 | J99: 12.2 | K99: 5.583434889 | L99: =('32% Range'!$B$8-Data!J99)/Data!K99 -> 4.083507814 | M99: =(J99-'32% Range'!$B$7)/Data!K99 -> 1.647731223 | N99: 0.4999778195 | O99: 0.4502960811 | P99: 0.9502739006 | Q99: 5.584 | S99: 12.2 | T99: 7.155808032 | U99: =('32% Range'!$B$8-Data!S99)/Data!T99 -> 3.186222981 | V99: =(S99-'32% Range'!$B$7)/Data!T99 -> 1.285668922 | W99: 0.4992792827 | X99: 0.4007206841 | Y99: 0.8999999668 | Z99: 7.153
A100: 12.3 | B100: 2.957619273 | C100: =('32% Range'!$B$8-Data!A100)/Data!B100 -> 7.675091992 | D100: =(A100-'32% Range'!$B$7)/Data!B100 -> 3.144420948 | E100: 0.5 | F100: 0.4991679207 | G100: 0.9991679207 | H100: 2.958 | J100: 12.3 | K100: 5.644131114 | L100: =('32% Range'!$B$8-Data!J100)/Data!K100 -> 4.021876803 | M100: =(J100-'32% Range'!$B$7)/Data!K100 -> 1.647729263 | N100: 0.4999711319 | O100: 0.4502958798 | P100: 0.9502670117 | Q100: 5.644 | S100: 12.3 | T100: 7.229577737 | U100: =('32% Range'!$B$8-Data!S100)/Data!T100 -> 3.139879095 | V100: =(S100-'32% Range'!$B$7)/Data!T100 -> 1.286382184 | W100: 0.4991549121 | X100: 0.4008451435 | Y100: 0.9000000556 | Z100: 7.231
A101: 12.4 | B101: 2.98957891 | C101: =('32% Range'!$B$8-Data!A101)/Data!B101 -> 7.559593066 | D101: =(A101-'32% Range'!$B$7)/Data!B101 -> 3.144255523 | E101: 0.5 | F101: 0.4991674501 | G101: 0.9991674501 | H101: 2.99 | J101: 12.4 | K101: 5.705346803 | L101: =('32% Range'!$B$8-Data!J101)/Data!K101 -> 3.961196537 | M101: =(J101-'32% Range'!$B$7)/Data!K101 -> 1.647577321 | N101: 0.4999627124 | O101: 0.4502802813 | P101: 0.9502429937 | Q101: 5.705 | S101: 12.4 | T101: 7.332482555 | U101: =('32% Range'!$B$8-Data!S101)/Data!T101 -> 3.082175761 | V101: =(S101-'32% Range'!$B$7)/Data!T101 -> 1.28196691 | W101: 0.4989725327 | X101: 0.4000728728 | Y101: 0.8990454055 | Z101: 7.309
A102: 12.5 | B102: 3.021496535 | C102: =('32% Range'!$B$8-Data!A102)/Data!B102 -> 7.446641006 | D102: =(A102-'32% Range'!$B$7)/Data!B102 -> 3.144137314 | E102: 0.5 | F102: 0.4991671137 | G102: 0.9991671137 | H102: 3.022 | J102: 12.5 | K102: 5.765884005 | L102: =('32% Range'!$B$8-Data!J102)/Data!K102 -> 3.902263725 | M102: =(J102-'32% Range'!$B$7)/Data!K102 -> 1.647622462 | N102: 0.4999523514 | O102: 0.4502849159 | P102: 0.9502372673 | Q102: 5.766 | S102: 12.5 | T102: 7.400388105 | U102: =('32% Range'!$B$8-Data!S102)/Data!T102 -> 3.040381083 | V102: =(S102-'32% Range'!$B$7)/Data!T102 -> 1.283716457 | W102: 0.4988186051 | X102: 0.400379408 | Y102: 0.8991980131 | Z102: 7.384
A103: 12.6 | B103: 3.053452615 | C103: =('32% Range'!$B$8-Data!A103)/Data!B103 -> 7.335957954 | D103: =(A103-'32% Range'!$B$7)/Data!B103 -> 3.14398198 | E103: 0.5 | F103: 0.4991666715 | G103: 0.9991666715 | H103: 3.054 | J103: 12.6 | K103: 5.826494273 | L103: =('32% Range'!$B$8-Data!J103)/Data!K103 -> 3.84450734 | M103: =(J103-'32% Range'!$B$7)/Data!K103 -> 1.647646003 | N103: 0.4999396026 | O103: 0.4502873328 | P103: 0.9502269353 | Q103: 5.826 | S103: 12.6 | T103: 7.467229555 | U103: =('32% Range'!$B$8-Data!S103)/Data!T103 -> 2.999773856 | V103: =(S103-'32% Range'!$B$7)/Data!T103 -> 1.285617367 | W103: 0.4986490994 | X103: 0.4007116837 | Y103: 0.8993607831 | Z103: 7.456
A104: 12.7 | B104: 3.085452324 | C104: =('32% Range'!$B$8-Data!A104)/Data!B104 -> 7.227465427 | D104: =(A104-'32% Range'!$B$7)/Data!B104 -> 3.14378541 | E104: 0.5 | F104: 0.4991661115 | G104: 0.9991661115 | H104: 3.086 | J104: 12.7 | K104: 5.887174267 | L104: =('32% Range'!$B$8-Data!J104)/Data!K104 -> 3.787895345 | M104: =(J104-'32% Range'!$B$7)/Data!K104 -> 1.647649545 | N104: 0.4999240356 | O104: 0.4502876963 | P104: 0.9502117319 | Q104: 5.887 | S104: 12.7 | T104: 7.532965839 | U104: =('32% Range'!$B$8-Data!S104)/Data!T104 -> 2.960321403 | V104: =(S104-'32% Range'!$B$7)/Data!T104 -> 1.287673435 | W104: 0.4984634088 | X104: 0.4010701677 | Y104: 0.8995335765 | Z104: 7.526
A105: 12.8 | B105: 3.117494823 | C105: =('32% Range'!$B$8-Data!A105)/Data!B105 -> 7.121102444 | D105: =(A105-'32% Range'!$B$7)/Data!B105 -> 3.143549728 | E105: 0.5 | F105: 0.4991654397 | G105: 0.9991654397 | H105: 3.118 | J105: 12.8 | K105: 5.947856078 | L105: =('32% Range'!$B$8-Data!J105)/Data!K105 -> 3.73243732 | M105: =(J105-'32% Range'!$B$7)/Data!K105 -> 1.647652511 | N105: 0.4999051821 | O105: 0.4502880008 | P105: 0.9501931829 | Q105: 5.948 | S105: 12.8 | T105: 7.597559619 | U105: =('32% Range'!$B$8-Data!S105)/Data!T105 -> 2.921990891 | V105: =(S105-'32% Range'!$B$7)/Data!T105 -> 1.289887871 | W105: 0.4982609914 | X105: 0.4014552037 | Y105: 0.8997161951 | Z105: 7.593
A106: 12.9 | B106: 3.149586699 | C106: =('32% Range'!$B$8-Data!A106)/Data!B106 -> 7.016793667 | D106: =(A106-'32% Range'!$B$7)/Data!B106 -> 3.143269561 | E106: 0.5 | F106: 0.4991646405 | G106: 0.9991646405 | H106: 3.15 | J106: 12.9 | K106: 6.008539537 | L106: =('32% Range'!$B$8-Data!J106)/Data!K106 -> 3.678098457 | M106: =(J106-'32% Range'!$B$7)/Data!K106 -> 1.647654965 | N106: 0.4998825104 | O106: 0.4502882528 | P106: 0.9501707632 | Q106: 6.009 | S106: 12.9 | T106: 7.660977312 | U106: =('32% Range'!$B$8-Data!S106)/Data!T106 -> 2.884749439 | V106: =(S106-'32% Range'!$B$7)/Data!T106 -> 1.292263323 | W106: 0.4980413735 | X106: 0.4018670156 | Y106: 0.8999083891 | Z106: 7.658
A107: 13 | B107: 3.181735108 | C107: =('32% Range'!$B$8-Data!A107)/Data!B107 -> 6.914466244 | D107: =(A107-'32% Range'!$B$7)/Data!B107 -> 3.142939202 | E107: 0.5 | F107: 0.4991636971 | G107: 0.9991636971 | H107: 3.182 | J107: 13 | K107: 6.069224487 | L107: =('32% Range'!$B$8-Data!J107)/Data!K107 -> 3.624845324 | M107: =(J107-'32% Range'!$B$7)/Data!K107 -> 1.647656965 | N107: 0.4998554328 | O107: 0.4502884582 | P107: 0.9501438909 | Q107: 6.069 | S107: 13 | T107: 7.723189065 | U107: =('32% Range'!$B$8-Data!S107)/Data!T107 -> 2.848564216 | V107: =(S107-'32% Range'!$B$7)/Data!T107 -> 1.294801916 | W107: 0.4978041505 | X107: 0.4023057146 | Y107: 0.9001098651 | Z107: 7.722
A108: 13.1 | B108: 3.213947748 | C108: =('32% Range'!$B$8-Data!A108)/Data!B108 -> 6.814049796 | D108: =(A108-'32% Range'!$B$7)/Data!B108 -> 3.142552646 | E108: 0.5 | F108: 0.499162592 | G108: 0.999162592 | H108: 3.214 | J108: 13.1 | K108: 6.129910779 | L108: =('32% Range'!$B$8-Data!J108)/Data!K108 -> 3.5726458 | M108: =(J108-'32% Range'!$B$7)/Data!K108 -> 1.647658565 | N108: 0.4998233037 | O108: 0.4502886224 | P108: 0.9501119261 | Q108: 6.13 | S108: 13.1 | T108: 7.78416864 | U108: =('32% Range'!$B$8-Data!S108)/Data!T108 -> 2.813402563 | V108: =(S108-'32% Range'!$B$7)/Data!T108 -> 1.297505291 | W108: =NORMSDIST(U108)-0.5 -> 0.497548988 | X108: =NORMSDIST(V108)-0.5 -> 0.4027713072 | Y108: =W108+X108 -> 0.9003202952 | Z108: 7.786
A109: 13.2 | B109: 3.246232824 | C109: =('32% Range'!$B$8-Data!A109)/Data!B109 -> 6.715476426 | D109: =(A109-'32% Range'!$B$7)/Data!B109 -> 3.142103649 | E109: 0.5 | F109: 0.4991613068 | G109: 0.9991613068 | H109: 3.247 | J109: 13.2 | K109: 6.190598276 | L109: =('32% Range'!$B$8-Data!J109)/Data!K109 -> 3.521469013 | M109: =(J109-'32% Range'!$B$7)/Data!K109 -> 1.647659813 | N109: 0.4997854186 | O109: 0.4502887505 | P109: 0.9500741691 | Q109: 6.191 | S109: 13.2 | T109: 7.84389326 | U109: =('32% Range'!$B$8-Data!S109)/Data!T109 -> 2.779232108 | V109: =(S109-'32% Range'!$B$7)/Data!T109 -> 1.300374656 | W109: =NORMSDIST(U109)-0.5 -> 0.4972756212 | X109: =NORMSDIST(V109)-0.5 -> 0.4032637041 | Y109: =W109+X109 -> 0.9005393253 | Z109: 7.851
A110: 13.3 | B110: 3.278598995 | C110: =('32% Range'!$B$8-Data!A110)/Data!B110 -> 6.618680734 | D110: =(A110-'32% Range'!$B$7)/Data!B110 -> 3.141585786 | E110: 0.5 | F110: 0.4991598221 | G110: 0.9991598221 | H110: 3.279 | J110: 13.3 | K110: 6.251286841 | L110: =('32% Range'!$B$8-Data!J110)/Data!K110 -> 3.471285281 | M110: =(J110-'32% Range'!$B$7)/Data!K110 -> 1.647660756 | N110: 0.4997410133 | O110: 0.4502888473 | P110: 0.9500298606 | Q110: 6.251 | S110: 13.3 | T110: 7.902343427 | U110: =('32% Range'!$B$8-Data!S110)/Data!T110 -> 2.746020874 | V110: =(S110-'32% Range'!$B$7)/Data!T110 -> 1.303410829 | W110: 0.4969838537 | X110: 0.4037827293 | Y110: 0.9007665831 | Z110: 7.916
A111: 13.4 | B111: 3.311055323 | C111: =('32% Range'!$B$8-Data!A111)/Data!B111 -> 6.523599847 | D111: =(A111-'32% Range'!$B$7)/Data!B111 -> 3.140992519 | E111: 0.5 | F111: 0.4991581183 | G111: 0.9991581183 | H111: 3.311 | J111: 13.4 | K111: 6.311976345 | L111: =('32% Range'!$B$8-Data!J111)/Data!K111 -> 3.422066057 | M111: =(J111-'32% Range'!$B$7)/Data!K111 -> 1.647661435 | N111: 0.4996892639 | O111: 0.450288917 | P111: 0.9499781809 | Q111: 6.312 | S111: 13.4 | T111: 7.9915408 | U111: =('32% Range'!$B$8-Data!S111)/Data!T111 -> 2.702858002 | V111: =(S111-'32% Range'!$B$7)/Data!T111 -> 1.301376075 | W111: 0.4965626946 | X111: 0.4034351206 | Y111: 0.8999978152 | Z111: 7.982
A112: 13.5 | B112: 3.343611203 | C112: =('32% Range'!$B$8-Data!A112)/Data!B112 -> 6.430173454 | D112: =(A112-'32% Range'!$B$7)/Data!B112 -> 3.140317268 | E112: 0.4999999999 | F112: 0.4991561752 | G112: 0.9991561752 | H112: 3.344 | J112: 13.5 | K112: 6.372666658 | L112: =('32% Range'!$B$8-Data!J112)/Data!K112 -> 3.373783873 | M112: =(J112-'32% Range'!$B$7)/Data!K112 -> 1.647661892 | N112: 0.4996292872 | O112: 0.4502889639 | P112: 0.9499182511 | Q112: 6.372 | S112: 13.5 | T112: 8.055175202 | U112: =('32% Range'!$B$8-Data!S112)/Data!T112 -> 2.669091542 | V112: =(S112-'32% Range'!$B$7)/Data!T112 -> 1.303509823 | W112: 0.4961971641 | X112: 0.4037996175 | Y112: 0.8999967816 | Z112: 8.047
A113: 13.6 | B113: 3.376276288 | C113: =('32% Range'!$B$8-Data!A113)/Data!B113 -> 6.338343836 | D113: =(A113-'32% Range'!$B$7)/Data!B113 -> 3.139553489 | E113: 0.4999999999 | F113: 0.4991539724 | G113: 0.9991539723 | H113: 3.377 | J113: 13.6 | K113: 6.433357651 | L113: =('32% Range'!$B$8-Data!J113)/Data!K113 -> 3.326412297 | M113: =(J113-'32% Range'!$B$7)/Data!K113 -> 1.647662166 | N113: 0.4995601415 | O113: 0.450288992 | P113: 0.9498491335 | Q113: 6.432 | S113: 13.6 | T113: 8.117713715 | U113: =('32% Range'!$B$8-Data!S113)/Data!T113 -> 2.636210238 | V113: =(S113-'32% Range'!$B$7)/Data!T113 -> 1.305786379 | W113: 0.4958081115 | X113: 0.4041873934 | Y113: 0.8999955049 | Z113: 8.111
A114: 13.7 | B114: 3.408988521 | C114: =('32% Range'!$B$8-Data!A114)/Data!B114 -> 6.248187657 | D114: =(A114-'32% Range'!$B$7)/Data!B114 -> 3.138760936 | E114: 0.4999999998 | F114: 0.499151681 | G114: 0.9991516808 | H114: 3.409 | J114: 13.7 | K114: 6.493399787 | L114: =('32% Range'!$B$8-Data!J114)/Data!K114 -> 3.280253904 | M114: =(J114-'32% Range'!$B$7)/Data!K114 -> 1.647827078 | N114: 0.4994814315 | O114: 0.4503059196 | P114: 0.9497873511 | Q114: 6.491 | S114: 13.7 | T114: 8.179129544 | U114: =('32% Range'!$B$8-Data!S114)/Data!T114 -> 2.604189099 | V114: =(S114-'32% Range'!$B$7)/Data!T114 -> 1.30820767 | W114: 0.4953954035 | X114: 0.4045985593 | Y114: 0.8999939628 | Z114: 8.174
A115: 13.8 | B115: 3.441900042 | C115: =('32% Range'!$B$8-Data!A115)/Data!B115 -> 6.159388635 | D115: =(A115-'32% Range'!$B$7)/Data!B115 -> 3.137801757 | E115: 0.4999999996 | F115: 0.4991489002 | G115: 0.9991488998 | H115: 3.442 | J115: 13.8 | K115: 6.554085674 | L115: =('32% Range'!$B$8-Data!J115)/Data!K115 -> 3.23462357 | M115: =(J115-'32% Range'!$B$7)/Data!K115 -> 1.647827102 | N115: 0.499390984 | O115: 0.450305922 | P115: 0.949696906 | Q115: 6.549 | S115: 13.8 | T115: 8.23939878 | U115: =('32% Range'!$B$8-Data!S115)/Data!T115 -> 2.57300327 | V115: =(S115-'32% Range'!$B$7)/Data!T115 -> 1.310775251 | W115: 0.4949589872 | X115: 0.4050331467 | Y115: 0.899992134 | Z115: 8.235
A116: 13.9 | B116: 3.474950388 | C116: =('32% Range'!$B$8-Data!A116)/Data!B116 -> 6.072029136 | D116: =(A116-'32% Range'!$B$7)/Data!B116 -> 3.13673543 | E116: 0.4999999994 | F116: 0.4991457989 | G116: 0.9991457983 | H116: 3.474 | J116: 13.9 | K116: 6.614771837 | L116: =('32% Range'!$B$8-Data!J116)/Data!K116 -> 3.189830355 | M116: =(J116-'32% Range'!$B$7)/Data!K116 -> 1.647827056 | N116: 0.4992882183 | O116: 0.4503059173 | P116: 0.9495941356 | Q116: 6.604 | S116: 13.9 | T116: 8.298500334 | U116: =('32% Range'!$B$8-Data!S116)/Data!T116 -> 2.542628083 | V116: =(S116-'32% Range'!$B$7)/Data!T116 -> 1.313490337 | W116: 0.4944988866 | X116: 0.4054911126 | Y116: 0.8999899991 | Z116: 8.294
A117: 14 | B117: 3.50814942 | C117: =('32% Range'!$B$8-Data!A117)/Data!B117 -> 5.986062019 | D117: =(A117-'32% Range'!$B$7)/Data!B117 -> 3.135556295 | E117: 0.4999999989 | F117: 0.4991423575 | G117: 0.9991423564 | H117: 3.506 | J117: 14 | K117: 6.675458136 | L117: =('32% Range'!$B$8-Data!J117)/Data!K117 -> 3.145851502 | M117: =(J117-'32% Range'!$B$7)/Data!K117 -> 1.647826977 | N117: 0.4991719797 | O117: 0.4503059092 | P117: 0.9494778889 | Q117: 6.657 | S117: 14 | T117: 8.356415873 | U117: =('32% Range'!$B$8-Data!S117)/Data!T117 -> 2.513039121 | V117: =(S117-'32% Range'!$B$7)/Data!T117 -> 1.316353825 | W117: 0.494015197 | X117: 0.4059723436 | Y117: 0.8999875406 | Z117: 8.352
A118: 14.1 | B118: 3.541506846 | C118: =('32% Range'!$B$8-Data!A118)/Data!B118 -> 5.901442779 | D118: =(A118-'32% Range'!$B$7)/Data!B118 -> 3.134259083 | E118: 0.4999999982 | F118: 0.4991385567 | G118: 0.9991385549 | H118: 3.539 | J118: 14.1 | K118: 6.736144423 | L118: =('32% Range'!$B$8-Data!J118)/Data!K118 -> 3.102665069 | M118: =(J118-'32% Range'!$B$7)/Data!K118 -> 1.647826903 | N118: 0.4990410672 | O118: 0.4503059016 | P118: 0.9493469688 | Q118: 6.709 | S118: 14.1 | T118: 8.413129716 | U118: =('32% Range'!$B$8-Data!S118)/Data!T118 -> 2.484212262 | V118: =(S118-'32% Range'!$B$7)/Data!T118 -> 1.319366321 | W118: 0.4935080805 | X118: 0.4064766622 | Y118: 0.8999847427 | Z118: 8.409
A119: 14.2 | B119: 3.566981312 | C119: =('32% Range'!$B$8-Data!A119)/Data!B119 -> 5.831261276 | D119: =(A119-'32% Range'!$B$7)/Data!B119 -> 3.139909918 | E119: 0.4999999972 | F119: 0.499155001 | G119: 0.9991549983 | H119: 3.571 | J119: 14.2 | K119: 6.729535197 | L119: =('32% Range'!$B$8-Data!J119)/Data!K119 -> 3.090852398 | M119: =(J119-'32% Range'!$B$7)/Data!K119 -> 1.664305137 | N119: 0.4990020859 | O119: 0.4519742668 | P119: 0.9509763528 | Q119: 6.759 | S119: 14.2 | T119: 8.468628719 | U119: =('32% Range'!$B$8-Data!S119)/Data!T119 -> 2.456123735 | V119: =(S119-'32% Range'!$B$7)/Data!T119 -> 1.322528165 | W119: 0.4929777605 | X119: 0.4070038315 | Y119: 0.899981592 | Z119: 8.465
A120: 14.3 | B120: 3.600496383 | C120: =('32% Range'!$B$8-Data!A120)/Data!B120 -> 5.749207275 | D120: =(A120-'32% Range'!$B$7)/Data!B120 -> 3.138456145 | E120: 0.4999999955 | F120: 0.4991507983 | G120: 0.9991507938 | H120: 3.603 | J120: 14.3 | K120: 6.789620162 | L120: =('32% Range'!$B$8-Data!J120)/Data!K120 -> 3.048771434 | M120: =(J120-'32% Range'!$B$7)/Data!K120 -> 1.664305179 | N120: 0.4988511038 | O120: 0.451974271 | P120: 0.9508253749 | Q120: 6.809 | S120: 14.3 | T120: 8.522902141 | U120: =('32% Range'!$B$8-Data!S120)/Data!T120 -> 2.428750167 | V120: =(S120-'32% Range'!$B$7)/Data!T120 -> 1.325839463 | W120: 0.4924245157 | X120: 0.4075535608 | Y120: 0.8999780766 | Z120: 8.519
A121: 14.4 | B121: 3.636803297 | C121: =('32% Range'!$B$8-Data!A121)/Data!B121 -> 5.664315147 | D121: =(A121-'32% Range'!$B$7)/Data!B121 -> 3.134621004 | E121: 0.4999999926 | F121: 0.4991396187 | G121: 0.9991396113 | H121: 3.636 | J121: 14.4 | K121: 6.87076829 | L121: =('32% Range'!$B$8-Data!J121)/Data!K121 -> 2.998209098 | M121: =(J121-'32% Range'!$B$7)/Data!K121 -> 1.659203093 | N121: 0.4986421436 | O121: 0.4514625627 | P121: 0.9501047063 | Q121: 6.859 | S121: 14.4 | T121: 8.575941372 | U121: =('32% Range'!$B$8-Data!S121)/Data!T121 -> 2.40206866 | V121: =(S121-'32% Range'!$B$7)/Data!T121 -> 1.329300132 | W121: 0.4918486759 | X121: 0.4081255147 | Y121: 0.8999741906 | Z121: 8.572
A122: 14.5 | B122: 3.669043909 | C122: =('32% Range'!$B$8-Data!A122)/Data!B122 -> 5.587286637 | D122: =(A122-'32% Range'!$B$7)/Data!B122 -> 3.134331528 | E122: 0.4999999885 | F122: 0.4991387693 | G122: 0.9991387578 | H122: 3.669 | J122: 14.5 | K122: 6.917474251 | L122: =('32% Range'!$B$8-Data!J122)/Data!K122 -> 2.963509405 | M122: =(J122-'32% Range'!$B$7)/Data!K122 -> 1.662456495 | N122: 0.4984792362 | O122: 0.4517893603 | P122: 0.9502685965 | Q122: 6.909 | S122: 14.5 | T122: 8.627740226 | U122: =('32% Range'!$B$8-Data!S122)/Data!T122 -> 2.376056703 | V122: =(S122-'32% Range'!$B$7)/Data!T122 -> 1.332909858 | W122: 0.4912506133 | X122: 0.4087193064 | Y122: 0.8999699197 | Z122: 8.624
A123: 14.6 | B123: 3.701289499 | C123: =('32% Range'!$B$8-Data!A123)/Data!B123 -> 5.511592651 | D123: =(A123-'32% Range'!$B$7)/Data!B123 -> 3.13404288 | E123: 0.4999999822 | F123: 0.4991379217 | G123: 0.9991379039 | H123: 3.701 | J123: 14.6 | K123: 6.963110749 | L123: =('32% Range'!$B$8-Data!J123)/Data!K123 -> 2.929725052 | M123: =(J123-'32% Range'!$B$7)/Data!K123 -> 1.665922088 | N123: 0.4983036898 | O123: 0.4521355332 | P123: 0.950439223 | Q123: 6.959 | S123: 14.6 | T123: 8.678294188 | U123: =('32% Range'!$B$8-Data!S123)/Data!T123 -> 2.350692378 | V123: =(S123-'32% Range'!$B$7)/Data!T123 -> 1.336668215 | W123: 0.4906307408 | X123: 0.4093345192 | Y123: 0.89996526 | Z123: 8.674
A124: 14.7 | B124: 3.733534534 | C124: =('32% Range'!$B$8-Data!A124)/Data!B124 -> 5.437206972 | D124: =(A124-'32% Range'!$B$7)/Data!B124 -> 3.133759683 | E124: 0.4999999729 | F124: 0.4991370893 | G124: 0.9991370623 | H124: 3.734 | J124: 14.7 | K124: 7.007643681 | L124: =('32% Range'!$B$8-Data!J124)/Data!K124 -> 2.896836786 | M124: =(J124-'32% Range'!$B$7)/Data!K124 -> 1.669605438 | N124: 0.498115271 | O124: 0.4525012731 | P124: 0.9506165441 | Q124: 7.01 | S124: 14.7 | T124: 8.727600613 | U124: =('32% Range'!$B$8-Data!S124)/Data!T124 -> 2.32595428 | V124: =(S124-'32% Range'!$B$7)/Data!T124 -> 1.340574634 | W124: 0.4899895051 | X124: 0.4099707013 | Y124: 0.8999602063 | Z124: 8.723
A125: 14.8 | B125: 3.765778832 | C125: =('32% Range'!$B$8-Data!A125)/Data!B125 -> 5.36409622 | D125: =(A125-'32% Range'!$B$7)/Data!B125 -> 3.13348195 | E125: 0.4999999593 | F125: 0.4991362723 | G125: 0.9991362316 | H125: 3.768 | J125: 14.8 | K125: 7.051085354 | L125: =('32% Range'!$B$8-Data!J125)/Data!K125 -> 2.864807187 | M125: =(J125-'32% Range'!$B$7)/Data!K125 -> 1.673501228 | N125: 0.4979136839 | O125: 0.4528856675 | P125: 0.9507993514 | Q125: 7.061 | S125: 14.8 | T125: 8.775658488 | U125: =('32% Range'!$B$8-Data!S125)/Data!T125 -> 2.30182157 | V125: =(S125-'32% Range'!$B$7)/Data!T125 -> 1.344628442 | W125: 0.4893273817 | X125: 0.4106273732 | Y125: 0.8999547549 | Z125: 8.771
A126: 14.9 | B126: 3.79801679 | C126: =('32% Range'!$B$8-Data!A126)/Data!B126 -> 5.292235688 | D126: =(A126-'32% Range'!$B$7)/Data!B126 -> 3.133214164 | E126: 0.4999999396 | F126: 0.4991354838 | G126: 0.9991354234 | H126: 3.801 | J126: 14.9 | K126: 7.093411187 | L126: =('32% Range'!$B$8-Data!J126)/Data!K126 -> 2.833615516 | M126: =(J126-'32% Range'!$B$7)/Data!K126 -> 1.677613166 | N126: 0.4976987665 | O126: 0.4532886796 | P126: 0.9509874461 | Q126: 7.113 | S126: 14.9 | T126: 8.822468276 | U126: =('32% Range'!$B$8-Data!S126)/Data!T126 -> 2.27827399 | V126: =(S126-'32% Range'!$B$7)/Data!T126 -> 1.34882888 | W126: 0.4886448708 | X126: 0.4113040319 | Y126: 0.8999489027 | Z126: 8.818
A127: 15 | B127: 3.836542343 | C127: =('32% Range'!$B$8-Data!A127)/Data!B127 -> 5.213027307 | D127: =(A127-'32% Range'!$B$7)/Data!B127 -> 3.127816384 | E127: 0.4999999071 | F127: 0.4991194492 | G127: 0.9991193563 | H127: 3.835 | J127: 15 | K127: 7.180435417 | L127: =('32% Range'!$B$8-Data!J127)/Data!K127 -> 2.785346408 | M127: =(J127-'32% Range'!$B$7)/Data!K127 -> 1.671207845 | N127: 0.4973264717 | O127: 0.4526596844 | P127: 0.9499861561 | Q127: 7.165 | S127: 15 | T127: 8.868031768 | U127: =('32% Range'!$B$8-Data!S127)/Data!T127 -> 2.255291876 | V127: =(S127-'32% Range'!$B$7)/Data!T127 -> 1.353175125 | W127: 0.4879424929 | X127: 0.412000155 | Y127: 0.8999426479 | Z127: 8.864
A128: 15.1 | B128: 3.869946693 | C128: =('32% Range'!$B$8-Data!A128)/Data!B128 -> 5.142189694 | D128: =(A128-'32% Range'!$B$7)/Data!B128 -> 3.126658055 | E128: 0.4999998642 | F128: 0.4991159728 | G128: 0.999115837 | H128: 3.869 | J128: 15.1 | K128: 7.228221482 | L128: =('32% Range'!$B$8-Data!J128)/Data!K128 -> 2.753097709 | M128: =(J128-'32% Range'!$B$7)/Data!K128 -> 1.673994084 | N128: 0.4970482863 | O128: 0.452934119 | P128: 0.9499824053 | Q128: 7.216 | S128: 15.1 | T128: 8.912351941 | U128: =('32% Range'!$B$8-Data!S128)/Data!T128 -> 2.232856168 | V128: =(S128-'32% Range'!$B$7)/Data!T128 -> 1.357666313 | W128: 0.4872207845 | X128: 0.4127152047 | Y128: 0.8999359892 | Z128: 8.908
A129: 15.2 | B129: 3.903390234 | C129: =('32% Range'!$B$8-Data!A129)/Data!B129 -> 5.072513587 | D129: =(A129-'32% Range'!$B$7)/Data!B129 -> 3.12548817 | E129: 0.4999998037 | F129: 0.499112449 | G129: 0.9991122527 | H129: 3.903 | J129: 15.2 | K129: 7.275015134 | L129: =('32% Range'!$B$8-Data!J129)/Data!K129 -> 2.721643823 | M129: =(J129-'32% Range'!$B$7)/Data!K129 -> 1.676972456 | N129: 0.4967520944 | O129: 0.453226066 | P129: 0.9499781604 | Q129: 7.266 | S129: 15.2 | T129: 8.955432817 | U129: =('32% Range'!$B$8-Data!S129)/Data!T129 -> 2.210948416 | V129: =(S129-'32% Range'!$B$7)/Data!T129 -> 1.362301549 | W129: 0.4864802953 | X129: 0.4134486305 | Y129: 0.8999289258 | Z129: 8.951
A130: 15.3 | B130: 3.936864465 | C130: =('32% Range'!$B$8-Data!A130)/Data!B130 -> 5.003982274 | D130: =(A130-'32% Range'!$B$7)/Data!B130 -> 3.124313806 | E130: 0.4999997192 | F130: 0.4991088986 | G130: 0.9991086178 | H130: 3.937 | J130: 15.3 | K130: 7.320788623 | L130: =('32% Range'!$B$8-Data!J130)/Data!K130 -> 2.690966918 | M130: =(J130-'32% Range'!$B$7)/Data!K130 -> 1.680146858 | N130: 0.496437737 | O130: 0.453535627 | P130: 0.949973364 | Q130: 7.314 | S130: 15.3 | T130: 8.997279335 | U130: =('32% Range'!$B$8-Data!S130)/Data!T130 -> 2.189550782 | V130: =(S130-'32% Range'!$B$7)/Data!T130 -> 1.36707993 | W130: 0.4857215841 | X130: 0.4141998733 | Y130: 0.8999214573 | Z130: 8.993
A131: 15.4 | B131: 3.970372321 | C131: =('32% Range'!$B$8-Data!A131)/Data!B131 -> 4.936564739 | D131: =(A131-'32% Range'!$B$7)/Data!B131 -> 3.123132794 | E131: 0.4999996024 | F131: 0.499105315 | G131: 0.9991049175 | H131: 3.97 | J131: 15.4 | K131: 7.365603757 | L131: =('32% Range'!$B$8-Data!J131)/Data!K131 -> 2.661017433 | M131: =(J131-'32% Range'!$B$7)/Data!K131 -> 1.683500825 | N131: 0.4961047538 | O131: 0.4538609101 | P131: 0.9499656639 | Q131: 7.361 | S131: 15.4 | T131: 9.037897234 | U131: =('32% Range'!$B$8-Data!S131)/Data!T131 -> 2.168646035 | V131: =(S131-'32% Range'!$B$7)/Data!T131 -> 1.372000553 | W131: 0.4849452163 | X131: 0.4149683671 | Y131: 0.8999135834 | Z131: 9.034
A132: 15.5 | B132: 4.003878789 | C132: =('32% Range'!$B$8-Data!A132)/Data!B132 -> 4.870277306 | D132: =(A132-'32% Range'!$B$7)/Data!B132 -> 3.121972632 | E132: 0.4999994428 | F132: 0.4991017818 | G132: 0.9991012246 | H132: 4.004 | J132: 15.5 | K132: 7.409273738 | L132: =('32% Range'!$B$8-Data!J132)/Data!K132 -> 2.631836896 | M132: =(J132-'32% Range'!$B$7)/Data!K132 -> 1.687074934 | N132: 0.4957537689 | O132: 0.4542055279 | P132: 0.9499592968 | Q132: 7.405 | S132: 15.5 | T132: 9.077292934 | U132: =('32% Range'!$B$8-Data!S132)/Data!T132 -> 2.148217551 | V132: =(S132-'32% Range'!$B$7)/Data!T132 -> 1.377062533 | W132: 0.4841517615 | X132: 0.4157535424 | Y132: 0.8999053039 | Z132: 9.073
A133: 15.6 | B133: 4.037380938 | C133: =('32% Range'!$B$8-Data!A133)/Data!B133 -> 4.805095258 | D133: =(A133-'32% Range'!$B$7)/Data!B133 -> 3.120835064 | E133: 0.4999992266 | F133: 0.499098305 | G133: 0.9990975316 | H133: 4.037 | J133: 15.6 | K133: 7.451849279 | L133: =('32% Range'!$B$8-Data!J133)/Data!K133 -> 2.60338062 | M133: =(J133-'32% Range'!$B$7)/Data!K133 -> 1.690855454 | N133: 0.4953845295 | O133: 0.4545677936 | P133: 0.9499523231 | Q133: 7.448 | S133: 15.6 | T133: 9.115473484 | U133: =('32% Range'!$B$8-Data!S133)/Data!T133 -> 2.128249293 | V133: =(S133-'32% Range'!$B$7)/Data!T133 -> 1.382265005 | W133: 0.4833417901 | X133: 0.4165548265 | Y133: 0.8998966166 | Z133: 9.111
A134: 15.7 | B134: 4.070862988 | C134: =('32% Range'!$B$8-Data!A134)/Data!B134 -> 4.741009475 | D134: =(A134-'32% Range'!$B$7)/Data!B134 -> 3.119731623 | E134: 0.4999989367 | F134: 0.4990949206 | G134: 0.9990938573 | H134: 4.071 | J134: 15.7 | K134: 7.493309122 | L134: =('32% Range'!$B$8-Data!J134)/Data!K134 -> 2.575631098 | M134: =(J134-'32% Range'!$B$7)/Data!K134 -> 1.694845334 | N134: 0.4949971333 | O134: 0.4549476175 | P134: 0.9499447507 | Q134: 7.489 | S134: 15.7 | T134: 9.152446214 | U134: =('32% Range'!$B$8-Data!S134)/Data!T134 -> 2.108725859 | V134: =(S134-'32% Range'!$B$7)/Data!T134 -> 1.387607171 | W134: 0.4825158743 | X134: 0.4173716517 | Y134: 0.899887526 | Z134: 9.148
A135: 15.8 | B135: 4.104306569 | C135: =('32% Range'!$B$8-Data!A135)/Data!B135 -> 4.678013125 | D135: =(A135-'32% Range'!$B$7)/Data!B135 -> 3.118675417 | E135: 0.4999985517 | F135: 0.4990916702 | G135: 0.9990902218 | H135: 4.104 | J135: 15.8 | K135: 7.533634072 | L135: =('32% Range'!$B$8-Data!J135)/Data!K135 -> 2.548570825 | M135: =(J135-'32% Range'!$B$7)/Data!K135 -> 1.699047216 | N135: 0.4945917339 | O135: 0.4553448562 | P135: 0.9499365902 | Q135: 7.53 | S135: 15.8 | T135: 9.188219149 | U135: =('32% Range'!$B$8-Data!S135)/Data!T135 -> 2.089632353 | V135: =(S135-'32% Range'!$B$7)/Data!T135 -> 1.393088235 | W135: 0.481674581 | X135: 0.4182034449 | Y135: 0.8998780259 | Z135: 9.184
A136: 15.9 | B136: 4.137690287 | C136: =('32% Range'!$B$8-Data!A136)/Data!B136 -> 4.616101901 | D136: =(A136-'32% Range'!$B$7)/Data!B136 -> 3.117681389 | E136: =NORMSDIST(C136)-0.5 -> 0.4999980449 | F136: =NORMSDIST(D136)-0.5 -> 0.4990886013 | G136: =E136+F136 -> 0.9990866462 | H136: 4.137 | J136: 15.9 | K136: 7.572806834 | L136: =('32% Range'!$B$8-Data!J136)/Data!K136 -> 2.522182385 | M136: =(J136-'32% Range'!$B$7)/Data!K136 -> 1.703463495 | N136: =NORMSDIST(L136)-0.5 -> 0.494168539 | O136: =NORMSDIST(M136)-0.5 -> 0.4557593181 | P136: =N136+O136 -> 0.949927857 | Q136: 7.569 | S136: 15.9 | T136: 9.222800424 | U136: =('32% Range'!$B$8-Data!S136)/Data!T136 -> 2.070954496 | V136: =(S136-'32% Range'!$B$7)/Data!T136 -> 1.398707487 | W136: 0.4808184756 | X136: 0.4190496409 | Y136: 0.8998681165 | Z136: 9.219
A137: 16 | B137: 4.170989275 | C137: =('32% Range'!$B$8-Data!A137)/Data!B137 -> 4.555274241 | D137: =(A137-'32% Range'!$B$7)/Data!B137 -> 3.116766586 | E137: 0.4999973841 | F137: 0.4990857686 | G137: 0.9990831527 | H137: 4.171 | J137: 16 | K137: 7.6108119 | L137: =('32% Range'!$B$8-Data!J137)/Data!K137 -> 2.496448506 | M137: =(J137-'32% Range'!$B$7)/Data!K137 -> 1.708096346 | N137: 0.493727806 | O137: 0.4561907666 | P137: 0.9499185726 | Q137: 7.607 | S137: 16 | T137: 9.256198462 | U137: =('32% Range'!$B$8-Data!S137)/Data!T137 -> 2.052678546 | V137: =(S137-'32% Range'!$B$7)/Data!T137 -> 1.404464268 | W137: 0.4799481179 | X137: 0.4199096777 | Y137: 0.8998577956 | Z137: 9.252
A138: 16.1 | B138: 4.204174468 | C138: =('32% Range'!$B$8-Data!A138)/Data!B138 -> 4.495531796 | D138: =(A138-'32% Range'!$B$7)/Data!B138 -> 3.11595061 | E138: 0.4999965302 | F138: 0.4990832351 | G138: 0.9990797653 | H138: 4.204 | J138: =A137+0.1 -> 16.1 | K138: 7.647633862 | L138: =('32% Range'!$B$8-Data!J138)/Data!K138 -> 2.471352622 | M138: =(J138-'32% Range'!$B$7)/Data!K138 -> 1.712948114 | N138: 0.493269849 | O138: 0.4566389572 | P138: 0.9499088062 | Q138: 7.644 | S138: =S137+0.1 -> 16.1 | T138: 9.288421854 | U138: =('32% Range'!$B$8-Data!S138)/Data!T138 -> 2.034791302 | V138: =(S138-'32% Range'!$B$7)/Data!T138 -> 1.410357993 | W138: 0.4790640617 | X138: 0.4207829987 | Y138: 0.8998470604 | Z138: 9.284
A139: 16.2 | B139: 4.237213101 | C139: =('32% Range'!$B$8-Data!A139)/Data!B139 -> 4.436878569 | D139: =(A139-'32% Range'!$B$7)/Data!B139 -> 3.115255166 | E139: 0.4999954364 | F139: 0.4990810708 | G139: 0.9990765071 | H139: 4.237 | J139: 16.2 | K139: 7.6832632 | L139: =('32% Range'!$B$8-Data!J139)/Data!K139 -> 2.446876999 | M139: =(J139-'32% Range'!$B$7)/Data!K139 -> 1.71802002 | N139: 0.4927949997 | O139: 0.4571035182 | P139: 0.9498985179 | Q139: 7.679 | S139: 16.2 | T139: 9.319479304 | U139: =('32% Range'!$B$8-Data!S139)/Data!T139 -> 2.017280085 | V139: =(S139-'32% Range'!$B$7)/Data!T139 -> 1.416388145 | W139: 0.4781668536 | X139: 0.4216690535 | Y139: 0.8998359071 | Z139: 9.316
A140: 16.3 | B140: 4.27009912 | C140: =('32% Range'!$B$8-Data!A140)/Data!B140 -> 4.379289444 | D140: =(A140-'32% Range'!$B$7)/Data!B140 -> 3.114681797 | E140: 0.4999940467 | F140: 0.4990792828 | G140: 0.9990733294 | H140: 4.269 | J140: 16.3 | K140: 7.717881616 | L140: =('32% Range'!$B$8-Data!J140)/Data!K140 -> 2.422944654 | M140: =(J140-'32% Range'!$B$7)/Data!K140 -> 1.723270796 | N140: 0.492302364 | O140: 0.4575802169 | P140: 0.9498825809 | Q140: 7.714 | S140: 16.3 | T140: 9.349379568 | U140: =('32% Range'!$B$8-Data!S140)/Data!T140 -> 2.000132722 | V140: =(S140-'32% Range'!$B$7)/Data!T140 -> 1.422554289 | W140: 0.4772570329 | X140: 0.4225672984 | Y140: 0.8998243313 | Z140: 9.346
A141: 16.4 | B141: 4.302737874 | C141: =('32% Range'!$B$8-Data!A141)/Data!B141 -> 4.322828986 | D141: =(A141-'32% Range'!$B$7)/Data!B141 -> 3.114296151 | E141: 0.4999922979 | F141: 0.4990780784 | G141: 0.9990703764 | H141: 4.302 | J141: 16.4 | K141: 7.75116727 | L141: =('32% Range'!$B$8-Data!J141)/Data!K141 -> 2.399638577 | M141: =(J141-'32% Range'!$B$7)/Data!K141 -> 1.728771878 | N141: 0.4917943667 | O141: 0.4580750344 | P141: 0.9498694011 | Q141: 7.747 | S141: 16.4 | T141: 9.378131407 | U141: =('32% Range'!$B$8-Data!S141)/Data!T141 -> 1.983337532 | V141: =(S141-'32% Range'!$B$7)/Data!T141 -> 1.428856072 | W141: 0.4763351301 | X141: 0.4234771972 | Y141: 0.8998123274 | Z141: 9.374
A142: 16.5 | B142: 4.335102695 | C142: =('32% Range'!$B$8-Data!A142)/Data!B142 -> 4.267488293 | D142: =(A142-'32% Range'!$B$7)/Data!B142 -> 3.114113079 | E142: 0.4999901157 | F142: 0.4990775062 | G142: 0.9990676219 | H142: 4.334 | J142: 16.5 | K142: 7.783246422 | L142: =('32% Range'!$B$8-Data!J142)/Data!K142 -> 2.376900203 | M142: =(J142-'32% Range'!$B$7)/Data!K142 -> 1.734494743 | N142: 0.4912705945 | O142: 0.4585848311 | P142: 0.9498554256 | Q142: 7.779 | S142: 16.5 | T142: 9.405743544 | U142: =('32% Range'!$B$8-Data!S142)/Data!T142 -> 1.96688331 | V142: =(S142-'32% Range'!$B$7)/Data!T142 -> 1.435293227 | W142: 0.4754016675 | X142: 0.4243982214 | Y142: 0.8997998889 | Z142: 9.402
A143: 16.6 | B143: 4.367139418 | C143: =('32% Range'!$B$8-Data!A143)/Data!B143 -> 4.213284312 | D143: =(A143-'32% Range'!$B$7)/Data!B143 -> 3.114166666 | E143: 0.4999874158 | F143: 0.4990776737 | G143: 0.9990650895 | H143: 4.366 | J143: 16.6 | K143: 7.814113974 | L143: =('32% Range'!$B$8-Data!J143)/Data!K143 -> 2.354713543 | M143: =(J143-'32% Range'!$B$7)/Data!K143 -> 1.740440445 | N143: 0.4907315053 | O143: 0.4591091455 | P143: 0.9498406508 | Q143: 7.81 | S143: 16.6 | T143: 9.432224626 | U143: =('32% Range'!$B$8-Data!S143)/Data!T143 -> 1.95075931 | V143: =(S143-'32% Range'!$B$7)/Data!T143 -> 1.441865577 | W143: 0.4744571578 | X143: 0.4253298506 | Y143: 0.8997870084 | Z143: 9.428
A144: 16.7 | B144: 4.398788044 | C144: =('32% Range'!$B$8-Data!A144)/Data!B144 -> 4.160236824 | D144: =(A144-'32% Range'!$B$7)/Data!B144 -> 3.114494234 | E144: 0.4999841041 | F144: 0.4990786972 | G144: 0.9990628013 | H144: 4.397 | J144: 16.7 | K144: 7.843765968 | L144: =('32% Range'!$B$8-Data!J144)/Data!K144 -> 2.33306298 | M144: =(J144-'32% Range'!$B$7)/Data!K144 -> 1.74660999 | N144: 0.4901775799 | O144: 0.4596474934 | P144: 0.9498250734 | Q144: 7.84 | S144: 16.7 | T144: 9.457583184 | U144: =('32% Range'!$B$8-Data!S144)/Data!T144 -> 1.934955225 | V144: =(S144-'32% Range'!$B$7)/Data!T144 -> 1.448573037 | W144: 0.4735021048 | X144: 0.4262715723 | Y144: 0.8997736771 | Z144: 9.454
A145: 16.8 | B145: 4.429982781 | C145: =('32% Range'!$B$8-Data!A145)/Data!B145 -> 4.108368113 | D145: =(A145-'32% Range'!$B$7)/Data!B145 -> 3.115136261 | E145: 0.4999800768 | F145: 0.4990807002 | G145: 0.999060777 | H145: 4.428 | J145: 16.8 | K145: 7.872199481 | L145: =('32% Range'!$B$8-Data!J145)/Data!K145 -> 2.311933284 | M145: =(J145-'32% Range'!$B$7)/Data!K145 -> 1.753004358 | N145: 0.4896093199 | O145: 0.4601993705 | P145: 0.9498086904 | Q145: 7.869 | S145: 16.8 | T145: 9.481827606 | U145: =('32% Range'!$B$8-Data!S145)/Data!T145 -> 1.919461179 | V145: =(S145-'32% Range'!$B$7)/Data!T145 -> 1.45541562 | W145: 0.4725370026 | X145: 0.4272228826 | Y145: 0.8997598852 | Z145: 9.478
A146: 16.9 | B146: 4.460652245 | C146: =('32% Range'!$B$8-Data!A146)/Data!B146 -> 4.057702552 | D146: =(A146-'32% Range'!$B$7)/Data!B146 -> 3.116136214 | E146: 0.4999752211 | F146: 0.4990838119 | G146: 0.999059033 | H146: 4.459 | J146: 16.9 | K146: 7.899412515 | L146: =('32% Range'!$B$8-Data!J146)/Data!K146 -> 2.291309634 | M146: =(J146-'32% Range'!$B$7)/Data!K146 -> 1.759624526 | N146: 0.4890272441 | O146: 0.4607642549 | P146: 0.949791499 | Q146: 7.896 | S146: 16.9 | T146: 9.50496611 | U146: =('32% Range'!$B$8-Data!S146)/Data!T146 -> 1.904267705 | V146: =(S146-'32% Range'!$B$7)/Data!T146 -> 1.462393431 | W146: 0.471562336 | X146: 0.4281832857 | Y146: 0.8997456217 | Z146: 9.501
A147: 17 | B147: 4.490719813 | C147: =('32% Range'!$B$8-Data!A147)/Data!B147 -> 4.008266102 | D147: =(A147-'32% Range'!$B$7)/Data!B147 -> 3.117540302 | E147: 0.4999694169 | F147: 0.4990881649 | G147: 0.9990575819 | H147: 4.489 | J147: 17 | K147: 7.925403892 | L147: =('32% Range'!$B$8-Data!J147)/Data!K147 -> 2.271177626 | M147: =(J147-'32% Range'!$B$7)/Data!K147 -> 1.766471487 | N147: 0.4884318864 | O147: 0.4613416095 | P147: 0.9497734959 | Q147: 7.923 | S147: 17 | T147: 9.527006717 | U147: =('32% Range'!$B$8-Data!S147)/Data!T147 -> 1.88936573 | V147: =(S147-'32% Range'!$B$7)/Data!T147 -> 1.469506679 | W147: 0.4705785802 | X147: 0.4291522942 | Y147: 0.8997308744 | Z147: 9.523
A148: =A147+0.1 -> 17.1 | B148: 4.52056815 | C148: =('32% Range'!$B$8-Data!A148)/Data!B148 -> 3.959679272 | D148: =(A148-'32% Range'!$B$7)/Data!B148 -> 3.119076968 | E148: 0.4999624748 | F148: 0.4990929072 | G148: 0.9990553819 | H148: 4.518 | J148: 17.1 | K148: 7.952779652 | L148: =('32% Range'!$B$8-Data!J148)/Data!K148 -> 2.250785359 | M148: =(J148-'32% Range'!$B$7)/Data!K148 -> 1.772965003 | N148: 0.4878004323 | O148: 0.4618827469 | P148: 0.9496831793 | Q148: 7.948 | S148: 17.1 | T148: 9.547957231 | U148: =('32% Range'!$B$8-Data!S148)/Data!T148 -> 1.874746563 | V148: =(S148-'32% Range'!$B$7)/Data!T148 -> 1.476755672 | W148: 0.4695862011 | X148: 0.4301294286 | Y148: 0.8997156297 | Z148: 9.544
A149: 17.2 | B149: 4.549241627 | C149: =('32% Range'!$B$8-Data!A149)/Data!B149 -> 3.91274007 | D149: =(A149-'32% Range'!$B$7)/Data!B149 -> 3.121399381 | E149: 0.4999543726 | F149: 0.4991000313 | G149: 0.9990544039 | H149: 4.546 | J149: 17.2 | K149: 7.976637612 | L149: =('32% Range'!$B$8-Data!J149)/Data!K149 -> 2.231516695 | M149: =(J149-'32% Range'!$B$7)/Data!K149 -> 1.780198712 | N149: 0.4871765385 | O149: 0.4624782769 | P149: 0.9496548155 | Q149: 7.972 | S149: 17.2 | T149: 9.567825225 | U149: =('32% Range'!$B$8-Data!S149)/Data!T149 -> 1.860401876 | V149: =(S149-'32% Range'!$B$7)/Data!T149 -> 1.484140823 | W149: 0.4685856553 | X149: 0.4311142174 | Y149: 0.8996998727 | Z149: 9.564
A150: 17.3 | B150: 4.577062314 | C150: =('32% Range'!$B$8-Data!A150)/Data!B150 -> 3.867109248 | D150: =(A150-'32% Range'!$B$7)/Data!B150 -> 3.124274703 | E150: 0.4999449335 | F150: 0.4991087802 | G150: 0.9990537136 | H150: 4.574 | J150: 17.3 | K150: 7.999298663 | L150: =('32% Range'!$B$8-Data!J150)/Data!K150 -> 2.21269398 | M150: =(J150-'32% Range'!$B$7)/Data!K150 -> 1.787656719 | N150: 0.4865406247 | O150: 0.4630842957 | P150: 0.9496249204 | Q150: 7.995 | S150: 17.3 | T150: 9.586618016 | U150: =('32% Range'!$B$8-Data!S150)/Data!T150 -> 1.846323695 | V150: =(S150-'32% Range'!$B$7)/Data!T150 -> 1.491662646 | W150: 0.4675773904 | X150: 0.4321061969 | Y150: 0.8996835873 | Z150: 9.583
A151: 17.4 | B151: 4.603939431 | C151: =('32% Range'!$B$8-Data!A151)/Data!B151 -> 3.822813107 | D151: =(A151-'32% Range'!$B$7)/Data!B151 -> 3.127756178 | E151: 0.4999340311 | F151: 0.4991192688 | G151: 0.9990532999 | H151: 4.6 | J151: 17.4 | K151: 8.02076495 | L151: =('32% Range'!$B$8-Data!J151)/Data!K151 -> 2.194304422 | M151: =(J151-'32% Range'!$B$7)/Data!K151 -> 1.795339982 | N151: 0.4858932341 | O151: 0.4637002257 | P151: 0.9495934598 | Q151: 8.017 | S151: 17.4 | T151: 9.60434266 | U151: =('32% Range'!$B$8-Data!S151)/Data!T151 -> 1.832504381 | V151: =(S151-'32% Range'!$B$7)/Data!T151 -> 1.499321766 | W151: 0.4665618452 | X151: 0.4331049108 | Y151: 0.899666756 | Z151: 9.601
A152: 17.5 | B152: 4.629780936 | C152: =('32% Range'!$B$8-Data!A152)/Data!B152 -> 3.779876465 | D152: =(A152-'32% Range'!$B$7)/Data!B152 -> 3.131897643 | E152: 0.4999215469 | F152: 0.4991315979 | G152: 0.9990531448 | H152: 4.626 | J152: 17.5 | K152: 8.041039028 | L152: =('32% Range'!$B$8-Data!J152)/Data!K152 -> 2.176335663 | M152: =(J152-'32% Range'!$B$7)/Data!K152 -> 1.803249549 | N152: 0.4852349146 | O152: 0.464325484 | P152: 0.9495603986 | Q152: 8.037 | S152: 17.5 | T152: 9.621005934 | U152: =('32% Range'!$B$8-Data!S152)/Data!T152 -> 1.818936619 | V152: =(S152-'32% Range'!$B$7)/Data!T152 -> 1.507118912 | W152: 0.4655394498 | X152: 0.4341099101 | Y152: 0.8996493599 | Z152: 9.617
A153: 17.6 | B153: 4.654494598 | C153: =('32% Range'!$B$8-Data!A153)/Data!B153 -> 3.738322095 | D153: =(A153-'32% Range'!$B$7)/Data!B153 -> 3.136753023 | E153: 0.4999073737 | F153: 0.4991458502 | G153: 0.9990532239 | H153: 4.65 | J153: 17.6 | K153: 8.060123796 | L153: =('32% Range'!$B$8-Data!J153)/Data!K153 -> 2.158775776 | M153: =(J153-'32% Range'!$B$7)/Data!K153 -> 1.81138657 | N153: 0.4845662167 | O153: 0.4649594833 | P153: 0.9495257 | Q153: 8.056 | S153: 17.6 | T153: 9.636614328 | U153: =('32% Range'!$B$8-Data!S153)/Data!T153 -> 1.805613404 | V153: =(S153-'32% Range'!$B$7)/Data!T153 -> 1.515054925 | W153: 0.4645106263 | X153: 0.4351207524 | Y153: 0.8996313786 | Z153: 9.633
A154: 17.7 | B154: 4.677989091 | C154: =('32% Range'!$B$8-Data!A154)/Data!B154 -> 3.698170232 | D154: =(A154-'32% Range'!$B$7)/Data!B154 -> 3.142375862 | E154: 0.4998914204 | F154: 0.4991620862 | G154: 0.9990535066 | H154: 4.674 | J154: 17.7 | K154: 8.078022436 | L154: =('32% Range'!$B$8-Data!J154)/Data!K154 -> 2.141613264 | M154: =(J154-'32% Range'!$B$7)/Data!K154 -> 1.819752311 | N154: 0.4838876923 | O154: 0.4656016335 | P154: 0.9494893258 | Q154: 8.074 | S154: 17.7 | T154: 9.651174039 | U154: =('32% Range'!$B$8-Data!S154)/Data!T154 -> 1.792528031 | V154: =(S154-'32% Range'!$B$7)/Data!T154 -> 1.523130755 | W154: 0.4634757885 | X154: 0.4361370021 | Y154: 0.8996127906 | Z154: 9.648
A155: 17.8 | B155: 4.700175067 | C155: =('32% Range'!$B$8-Data!A155)/Data!B155 -> 3.65943816 | D155: =(A155-'32% Range'!$B$7)/Data!B155 -> 3.148818882 | E155: 0.4998736156 | F155: 0.4991803412 | G155: 0.9990539568 | H155: 4.695 | J155: 17.8 | K155: 8.094738357 | L155: =('32% Range'!$B$8-Data!J155)/Data!K155 -> 2.124837053 | M155: =(J155-'32% Range'!$B$7)/Data!K155 -> 1.828348162 | N155: 0.4831998941 | O155: 0.4662513421 | P155: 0.9494512361 | Q155: 8.091 | S155: 17.8 | T155: 9.664690956 | U155: =('32% Range'!$B$8-Data!S155)/Data!T155 -> 1.779674082 | V155: =(S155-'32% Range'!$B$7)/Data!T155 -> 1.531347465 | W155: 0.4624353427 | X155: 0.4371582298 | Y155: 0.8995935725 | Z155: 9.661
A156: 17.9 | B156: 4.720966194 | C156: =('32% Range'!$B$8-Data!A156)/Data!B156 -> 3.622139896 | D156: =(A156-'32% Range'!$B$7)/Data!B156 -> 3.156133594 | E156: 0.499853912 | F156: 0.4992006219 | G156: 0.9990545339 | H156: 4.716 | J156: 17.9 | K156: 8.11027514 | L156: =('32% Range'!$B$8-Data!J156)/Data!K156 -> 2.108436484 | M156: =(J156-'32% Range'!$B$7)/Data!K156 -> 1.83717565 | N156: 0.4825033743 | O156: 0.4669080154 | P156: 0.9494113897 | Q156: 8.106 | S156: 17.9 | T156: 9.677186441 | U156: =('32% Range'!$B$8-Data!S156)/Data!T156 -> 1.767042529 | V156: =(S156-'32% Range'!$B$7)/Data!T156 -> 1.539703724 | W156: 0.4613894469 | X156: 0.4381837057 | Y156: 0.8995731526 | Z156: 9.674
A157: 18 | B157: 4.740280107 | C157: =('32% Range'!$B$8-Data!A157)/Data!B157 -> 3.586285961 | D157: =(A157-'32% Range'!$B$7)/Data!B157 -> 3.164369966 | E157: 0.4998322894 | F157: 0.4992229045 | G157: 0.999055194 | H157: 4.735 | J157: 18 | K157: 8.12463649 | L157: =('32% Range'!$B$8-Data!J157)/Data!K157 -> 2.092401306 | M157: =(J157-'32% Range'!$B$7)/Data!K157 -> 1.846236446 | N157: 0.481798684 | O157: 0.4675710594 | P157: 0.9493697434 | Q157: 8.121 | S157: 18 | T157: 9.688634617 | U157: =('32% Range'!$B$8-Data!S157)/Data!T157 -> 1.754633204 | V157: =(S157-'32% Range'!$B$7)/Data!T157 -> 1.548205768 | W157: 0.4603389659 | X157: 0.4392136185 | Y157: 0.8995525844 | Z157: 9.685
A158: 18.1 | B158: 4.758039283 | C158: =('32% Range'!$B$8-Data!A158)/Data!B158 -> 3.551883243 | D158: =(A158-'32% Range'!$B$7)/Data!B158 -> 3.173576152 | E158: 0.4998087577 | F158: 0.499247133 | G158: 0.9990558907 | H158: 4.753 | J158: 18.1 | K158: 8.137826194 | L158: =('32% Range'!$B$8-Data!J158)/Data!K158 -> 2.07672167 | M158: =(J158-'32% Range'!$B$7)/Data!K158 -> 1.855532379 | N158: 0.4810863723 | O158: 0.4682398801 | P158: 0.9493262524 | Q158: 8.134 | S158: 18.1 | T158: 9.69905583 | U158: =('32% Range'!$B$8-Data!S158)/Data!T158 -> 1.742437645 | V158: =(S158-'32% Range'!$B$7)/Data!T158 -> 1.55685257 | W158: 0.4592840532 | X158: 0.4402472538 | Y158: 0.899531307 | Z158: 9.696
A159: 18.2 | B159: 4.774171803 | C159: =('32% Range'!$B$8-Data!A159)/Data!B159 -> 3.518934947 | D159: =(A159-'32% Range'!$B$7)/Data!B159 -> 3.183798286 | E159: 0.4997833585 | F159: 0.4992732187 | G159: 0.9990565772 | H159: 4.768 | J159: 18.2 | K159: 8.14984808 | L159: =('32% Range'!$B$8-Data!J159)/Data!K159 -> 2.061388119 | M159: =(J159-'32% Range'!$B$7)/Data!K159 -> 1.865065441 | N159: 0.4803669863 | O159: 0.468913884 | P159: 0.9492808703 | Q159: 8.145 | S159: 18.2 | T159: 9.708454389 | U159: =('32% Range'!$B$8-Data!S159)/Data!T159 -> 1.730450526 | V159: =(S159-'32% Range'!$B$7)/Data!T159 -> 1.565645714 | W159: 0.4582250933 | X159: 0.4412842091 | Y159: 0.8995093025 | Z159: 9.705
A160: 18.3 | B160: 4.788596942 | C160: =('32% Range'!$B$8-Data!A160)/Data!B160 -> 3.487451586 | D160: =(A160-'32% Range'!$B$7)/Data!B160 -> 3.195090375 | E160: 0.4997561764 | F160: 0.4993010647 | G160: 0.9990572411 | H160: 4.783 | J160: 18.3 | K160: 8.160622164 | L160: =('32% Range'!$B$8-Data!J160)/Data!K160 -> 2.046412597 | M160: =(J160-'32% Range'!$B$7)/Data!K160 -> 1.87485705 | N160: 0.4796421032 | O160: 0.4695938039 | P160: 0.9492359071 | Q160: 8.156 | S160: 18.3 | T160: 9.716834964 | U160: =('32% Range'!$B$8-Data!S160)/Data!T160 -> 1.71866663 | V160: =(S160-'32% Range'!$B$7)/Data!T160 -> 1.574586793 | W160: 0.4571624542 | X160: 0.4423240733 | Y160: 0.8994865275 | Z160: 9.713
A161: 18.4 | B161: 4.801228535 | C161: =('32% Range'!$B$8-Data!A161)/Data!B161 -> 3.457448417 | D161: =(A161-'32% Range'!$B$7)/Data!B161 -> 3.207512387 | E161: 0.4997273417 | F161: 0.4993305585 | G161: 0.9990579002 | H161: 4.795 | J161: 18.4 | K161: 8.169999654 | L161: =('32% Range'!$B$8-Data!J161)/Data!K161 -> 2.031823831 | M161: =(J161-'32% Range'!$B$7)/Data!K161 -> 1.884945 | N161: 0.4789142532 | O161: 0.4702813681 | P161: 0.9491956213 | Q161: 8.164 | S161: 18.4 | T161: 9.724201397 | U161: =('32% Range'!$B$8-Data!S161)/Data!T161 -> 1.707081057 | V161: =(S161-'32% Range'!$B$7)/Data!T161 -> 1.583677607 | W161: 0.4560965063 | X161: 0.4433664484 | Y161: 0.8994629547 | Z161: 9.721
A162: 18.5 | B162: 4.812051017 | C162: =('32% Range'!$B$8-Data!A162)/Data!B162 -> 3.428891327 | D162: =(A162-'32% Range'!$B$7)/Data!B162 -> 3.221079732 | E162: 0.4996969739 | F162: 0.4993614569 | G162: 0.9990584309 | H162: 4.805 | J162: 18.5 | K162: 8.178184176 | L162: =('32% Range'!$B$8-Data!J162)/Data!K162 -> 2.01756278 | M162: =(J162-'32% Range'!$B$7)/Data!K162 -> 1.895286248 | N162: 0.4781815917 | O162: 0.4709727554 | P162: 0.9491543472 | Q162: 8.171 | S162: 18.5 | T162: 9.730557323 | U162: =('32% Range'!$B$8-Data!S162)/Data!T162 -> 1.695689101 | V162: =(S162-'32% Range'!$B$7)/Data!T162 -> 1.592920065 | W162: 0.4550276132 | X162: 0.4444109378 | Y162: 0.8994385509 | Z162: 9.727
A163: 18.6 | B163: 4.821020102 | C163: =('32% Range'!$B$8-Data!A163)/Data!B163 -> 3.401769678 | D163: =(A163-'32% Range'!$B$7)/Data!B163 -> 3.235829693 | E163: 0.4996652448 | F163: 0.4993935514 | G163: 0.9990587962 | H163: 4.813 | J163: 18.6 | K163: 8.185177644 | L163: =('32% Range'!$B$8-Data!J163)/Data!K163 -> 2.003621755 | M163: =(J163-'32% Range'!$B$7)/Data!K163 -> 1.905884109 | N163: 0.4774447032 | O163: 0.4716673784 | P163: 0.9491120816 | Q163: 8.174 | S163: 18.6 | T163: 9.735906045 | U163: =('32% Range'!$B$8-Data!S163)/Data!T163 -> 1.684486264 | V163: =(S163-'32% Range'!$B$7)/Data!T163 -> 1.602316202 | W163: 0.4539561341 | X163: 0.4454571477 | Y163: 0.8994132817 | Z163: 9.733
A164: 18.7 | B164: 4.828099348 | C164: =('32% Range'!$B$8-Data!A164)/Data!B164 -> 3.376069717 | D164: =(A164-'32% Range'!$B$7)/Data!B164 -> 3.251797212 | E164: 0.4996323536 | F164: 0.499426611 | G164: 0.9990589645 | H164: 4.82 | J164: 18.7 | K164: 8.190981826 | L164: =('32% Range'!$B$8-Data!J164)/Data!K164 -> 1.989993428 | M164: =(J164-'32% Range'!$B$7)/Data!K164 -> 1.916742136 | N164: 0.4767041703 | O164: 0.4723646503 | P164: 0.9490688206 | Q164: 8.176 | S164: 18.7 | T164: 9.74025053 | U164: =('32% Range'!$B$8-Data!S164)/Data!T164 -> 1.673468249 | V164: =(S164-'32% Range'!$B$7)/Data!T164 -> 1.611868191 | W164: 0.452882424 | X164: 0.4465046873 | Y164: 0.8993871113 | Z164: 9.737
A165: 18.8 | B165: 4.833260343 | C165: =('32% Range'!$B$8-Data!A165)/Data!B165 -> 3.351774755 | D165: =(A165-'32% Range'!$B$7)/Data!B165 -> 3.269014884 | E165: 0.4995985234 | F165: 0.4994603869 | G165: 0.9990589103 | H165: 4.824 | J165: 18.8 | K165: 8.19559832 | L165: =('32% Range'!$B$8-Data!J165)/Data!K165 -> 1.976670814 | M165: =(J165-'32% Range'!$B$7)/Data!K165 -> 1.927864127 | N165: 0.475960574 | O165: 0.4730639856 | P165: 0.9490245596 | Q165: 8.174 | S165: 18.8 | T165: 9.743593406 | U165: =('32% Range'!$B$8-Data!S165)/Data!T165 -> 1.662630954 | V165: =(S165-'32% Range'!$B$7)/Data!T165 -> 1.621578338 | W165: 0.4518068345 | X165: 0.447553168 | Y165: 0.8993600025 | Z165: 9.74
A166: 18.9 | B166: 4.829599004 | C166: =('32% Range'!$B$8-Data!A166)/Data!B166 -> 3.333610096 | D166: =(A166-'32% Range'!$B$7)/Data!B166 -> 3.29219879 | E166: 0.4995713663 | F166: 0.4995029634 | G166: 0.9990743297 | H166: 4.826 | J166: 18.9 | K166: 8.160652631 | L166: =('32% Range'!$B$8-Data!J166)/Data!K166 -> 1.972881426 | M166: =(J166-'32% Range'!$B$7)/Data!K166 -> 1.948373582 | N166: 0.4757454634 | O166: 0.4743148608 | P166: 0.9500603241 | Q166: 8.171 | S166: 18.9 | T166: 9.745936967 | U166: =('32% Range'!$B$8-Data!S166)/Data!T166 -> 1.651970463 | V166: =(S166-'32% Range'!$B$7)/Data!T166 -> 1.63144909 | W166: 0.4507297138 | X166: 0.4486022031 | Y166: 0.899331917 | Z166: 9.743
A167: 19 | B167: 4.830552833 | C167: =('32% Range'!$B$8-Data!A167)/Data!B167 -> 3.312250285 | D167: =(A167-'32% Range'!$B$7)/Data!B167 -> 3.312250285 | E167: 0.4995372565 | F167: 0.4995372565 | G167: 0.9990745129 | H167: 4.826 | J167: 19 | K167: 8.161110616 | L167: =('32% Range'!$B$8-Data!J167)/Data!K167 -> 1.960517478 | M167: =(J167-'32% Range'!$B$7)/Data!K167 -> 1.960517478 | N167: 0.4750323314 | O167: 0.4750323314 | P167: 0.9500646628 | Q167: 8.167 | S167: 19 | T167: 9.747283163 | U167: =('32% Range'!$B$8-Data!S167)/Data!T167 -> 1.64148304 | V167: =(S167-'32% Range'!$B$7)/Data!T167 -> 1.64148304 | W167: 0.4496514076 | X167: 0.4496514076 | Y167: 0.8993028152 | Z167: 9.744
A168: 19.1 | B168: 4.829541829 | C168: =('32% Range'!$B$8-Data!A168)/Data!B168 -> 3.292237765 | D168: =(A168-'32% Range'!$B$7)/Data!B168 -> 3.333649561 | E168: 0.4995030323 | F168: 0.4995714271 | G168: 0.9990744594 | H168: 4.824 | J168: 19.1 | K168: 8.160335583 | L168: =('32% Range'!$B$8-Data!J168)/Data!K168 -> 1.948449281 | M168: =(J168-'32% Range'!$B$7)/Data!K168 -> 1.972958077 | N168: 0.474319386 | O168: 0.4757498305 | P168: 0.9500692166 | Q168: 8.162 | S168: 19.1 | T168: 9.747633603 | U168: =('32% Range'!$B$8-Data!S168)/Data!T168 -> 1.631165127 | V168: =(S168-'32% Range'!$B$7)/Data!T168 -> 1.651682927 | W168: 0.4485722592 | X168: 0.4507003976 | Y168: 0.8992726568 | Z168: 9.744
A169: 19.2 | B169: 4.826570093 | C169: =('32% Range'!$B$8-Data!A169)/Data!B169 -> 3.273546161 | D169: =(A169-'32% Range'!$B$7)/Data!B169 -> 3.356420748 | E169: 0.4994689648 | F169: 0.4996052083 | G169: 0.9990741731 | H169: 4.821 | J169: 19.2 | K169: 8.158327125 | L169: =('32% Range'!$B$8-Data!J169)/Data!K169 -> 1.936671545 | M169: =(J169-'32% Range'!$B$7)/Data!K169 -> 1.985701205 | N169: 0.4736072469 | O169: 0.4764667444 | P169: 0.9500739913 | Q169: 8.157 | S169: 19.2 | T169: 9.746989551 | U169: =('32% Range'!$B$8-Data!S169)/Data!T169 -> 1.621013331 | V169: =(S169-'32% Range'!$B$7)/Data!T169 -> 1.662051643 | W169: 0.4474926101 | X169: 0.4517487899 | Y169: 0.8992414001 | Z169: 9.743
A170: 19.3 | B170: 4.821650053 | C170: =('32% Range'!$B$8-Data!A170)/Data!B170 -> 3.256146719 | D170: =(A170-'32% Range'!$B$7)/Data!B170 -> 3.380585447 | E170: 0.4994353231 | F170: 0.4996383421 | G170: 0.9990736652 | H170: 4.815 | J170: 19.3 | K170: 8.155084566 | L170: =('32% Range'!$B$8-Data!J170)/Data!K170 -> 1.925179301 | M170: =(J170-'32% Range'!$B$7)/Data!K170 -> 1.998753032 | N170: 0.4728965346 | O170: 0.477182459 | P170: 0.9500789936 | Q170: 8.152 | S170: 19.3 | T170: 9.745351925 | U170: =('32% Range'!$B$8-Data!S170)/Data!T170 -> 1.611024427 | V170: =(S170-'32% Range'!$B$7)/Data!T170 -> 1.672592239 | W170: 0.4464128007 | X170: 0.4527962021 | Y170: 0.8992090029 | Z170: 9.741
A171: 19.4 | B171: 4.814669915 | C171: =('32% Range'!$B$8-Data!A171)/Data!B171 -> 3.24009751 | D171: =(A171-'32% Range'!$B$7)/Data!B171 -> 3.406256356 | E171: 0.4994025558 | F171: 0.4996706985 | G171: 0.9990732543 | H171: 4.808 | J171: 19.4 | K171: 8.149873809 | L171: =('32% Range'!$B$8-Data!J171)/Data!K171 -> 1.914140067 | M171: =(J171-'32% Range'!$B$7)/Data!K171 -> 2.012301096 | N171: 0.4721988694 | O171: 0.4779058965 | P171: 0.9501047659 | Q171: 8.146 | S171: 19.4 | T171: 9.74272129 | U171: =('32% Range'!$B$8-Data!S171)/Data!T171 -> 1.601195347 | V171: =(S171-'32% Range'!$B$7)/Data!T171 -> 1.683307929 | W171: 0.4453331705 | X171: 0.4538422519 | Y171: 0.8991754224 | Z171: 9.738
A172: 19.5 | B172: 4.805903633 | C172: =('32% Range'!$B$8-Data!A172)/Data!B172 -> 3.225199917 | D172: =(A172-'32% Range'!$B$7)/Data!B172 -> 3.433277331 | E172: 0.4993705764 | F172: 0.4997018341 | G172: 0.9990724105 | H172: 4.8 | J172: 19.5 | K172: 8.144050592 | L172: =('32% Range'!$B$8-Data!J172)/Data!K172 -> 1.903229827 | M172: =(J172-'32% Range'!$B$7)/Data!K172 -> 2.026018848 | N172: 0.4714947186 | O172: 0.4786185734 | P172: 0.950113292 | Q172: 8.14 | S172: 19.5 | T172: 9.739097855 | U172: =('32% Range'!$B$8-Data!S172)/Data!T172 -> 1.591523181 | V172: =(S172-'32% Range'!$B$7)/Data!T172 -> 1.694202096 | W172: 0.4442540586 | X172: 0.4548865567 | Y172: 0.8991406153 | Z172: 9.733
A173: 19.6 | B173: 4.795273658 | C173: =('32% Range'!$B$8-Data!A173)/Data!B173 -> 3.211495547 | D173: =(A173-'32% Range'!$B$7)/Data!B173 -> 3.461741953 | E173: 0.4993397699 | F173: 0.4997316543 | G173: 0.9990714242 | H173: 4.789 | J173: 19.6 | K173: 8.13697955 | L173: =('32% Range'!$B$8-Data!J173)/Data!K173 -> 1.892594163 | M173: =(J173-'32% Range'!$B$7)/Data!K173 -> 2.040069033 | N173: 0.4707940697 | O173: 0.4793282747 | P173: 0.9501223444 | Q173: 8.133 | S173: 19.6 | T173: 9.734481469 | U173: =('32% Range'!$B$8-Data!S173)/Data!T173 -> 1.582005169 | V173: =(S173-'32% Range'!$B$7)/Data!T173 -> 1.705278299 | W173: =NORMSDIST(U173)-0.5 -> 0.4431758047 | X173: =NORMSDIST(V173)-0.5 -> 0.4559287335 | Y173: =W173+X173 -> 0.8991045383 | Z173: 9.726
A174: 19.7 | B174: 4.782824659 | C174: =('32% Range'!$B$8-Data!A174)/Data!B174 -> 3.198946458 | D174: =(A174-'32% Range'!$B$7)/Data!B174 -> 3.491660513 | E174: 0.4993103461 | F174: 0.499759986 | G174: 0.9990703321 | H174: 4.777 | J174: 19.7 | K174: 8.128658578 | L174: =('32% Range'!$B$8-Data!J174)/Data!K174 -> 1.882229381 | M174: =(J174-'32% Range'!$B$7)/Data!K174 -> 2.05445952 | N174: 0.4700975609 | O174: 0.4800343813 | P174: 0.9501319422 | Q174: 8.125 | S174: 19.7 | T174: 9.728871615 | U174: =('32% Range'!$B$8-Data!S174)/Data!T174 -> 1.572638699 | V174: =(S174-'32% Range'!$B$7)/Data!T174 -> 1.716540279 | W174: 0.4420987492 | X174: 0.4569683988 | Y174: 0.8990671481 | Z174: 9.717
A175: 19.8 | B175: 4.768608873 | C175: =('32% Range'!$B$8-Data!A175)/Data!B175 -> 3.187512418 | D175: =(A175-'32% Range'!$B$7)/Data!B175 -> 3.523040041 | E175: 0.4992824885 | F175: 0.4997866865 | G175: 0.9990691751 | H175: 4.763 | J175: 19.8 | K175: 8.119085428 | L175: =('32% Range'!$B$8-Data!J175)/Data!K175 -> 1.872132044 | M175: =(J175-'32% Range'!$B$7)/Data!K175 -> 2.069198575 | N175: 0.4694058311 | O175: 0.4807362718 | P175: 0.950142103 | Q175: 8.115 | S175: 19.8 | T175: 9.722267401 | U175: =('32% Range'!$B$8-Data!S175)/Data!T175 -> 1.563421306 | V175: =(S175-'32% Range'!$B$7)/Data!T175 -> 1.72799197 | W175: 0.441023234 | X175: 0.458005168 | Y175: 0.899028402 | Z175: 9.705
A176: 19.9 | B176: 4.752685754 | C176: =('32% Range'!$B$8-Data!A176)/Data!B176 -> 3.177150938 | D176: =(A176-'32% Range'!$B$7)/Data!B176 -> 3.555884162 | E176: 0.499256352 | F176: 0.499811645 | G176: 0.9990679969 | H176: 4.747 | J176: 19.9 | K176: 8.108257735 | L176: =('32% Range'!$B$8-Data!J176)/Data!K176 -> 1.862298967 | M176: =(J176-'32% Range'!$B$7)/Data!K176 -> 2.08429487 | N176: 0.4687195195 | O176: 0.4814333231 | P176: 0.9501528426 | Q176: 8.105 | S176: 19.9 | T176: 9.68468845 | U176: =('32% Range'!$B$8-Data!S176)/Data!T176 -> 1.559162185 | V176: =(S176-'32% Range'!$B$7)/Data!T176 -> 1.745022577 | W176: 0.4405210007 | X176: 0.4595095305 | Y176: 0.9000305312 | Z176: 9.693
A177: 20 | B177: 4.735121625 | C177: =('32% Range'!$B$8-Data!A177)/Data!B177 -> 3.167817257 | D177: =(A177-'32% Range'!$B$7)/Data!B177 -> 3.590192892 | E177: 0.4992320599 | F177: 0.4998347833 | G177: 0.9990668432 | H177: 4.73 | J177: 20 | K177: 8.096173629 | L177: =('32% Range'!$B$8-Data!J177)/Data!K177 -> 1.852727064 | M177: =(J177-'32% Range'!$B$7)/Data!K177 -> 2.09975734 | N177: 0.4680392556 | O177: 0.4821249036 | P177: 0.9501641592 | Q177: 8.093 | S177: 20 | T177: 9.674808482 | U177: =('32% Range'!$B$8-Data!S177)/Data!T177 -> 1.550418288 | V177: =(S177-'32% Range'!$B$7)/Data!T177 -> 1.757140726 | W177: 0.439479424 | X177: 0.4605530873 | Y177: 0.9000325113 | Z177: 9.679
A178: 20.1 | B178: 4.715988933 | C178: =('32% Range'!$B$8-Data!A178)/Data!B178 -> 3.159464581 | D178: =(A178-'32% Range'!$B$7)/Data!B178 -> 3.625962707 | E178: 0.4992097034 | F178: 0.4998560565 | G178: 0.99906576 | H178: 4.711 | J178: 20.1 | K178: 8.08283068 | L178: =('32% Range'!$B$8-Data!J178)/Data!K178 -> 1.8434136 | M178: =(J178-'32% Range'!$B$7)/Data!K178 -> 2.115595473 | N178: 0.467365677 | O178: 0.4828103864 | P178: 0.9501760634 | Q178: 8.081 | S178: 20.1 | T178: 9.663877381 | U178: =('32% Range'!$B$8-Data!S178)/Data!T178 -> 1.541824199 | V178: =(S178-'32% Range'!$B$7)/Data!T178 -> 1.769476094 | W178: 0.43844184 | X178: 0.4615927716 | Y178: 0.9000346116 | Z178: 9.665
A179: 20.2 | B179: 4.695478012 | C179: =('32% Range'!$B$8-Data!A179)/Data!B179 -> 3.151968759 | D179: =(A179-'32% Range'!$B$7)/Data!B179 -> 3.663098828 | E179: 0.4991891319 | F179: 0.4998754088 | G179: 0.9990645407 | H179: 4.691 | J179: 20.2 | K179: 8.068843547 | L179: =('32% Range'!$B$8-Data!J179)/Data!K179 -> 1.83421576 | M179: =(J179-'32% Range'!$B$7)/Data!K179 -> 2.131656154 | N179: 0.4666890136 | O179: 0.4834824381 | P179: 0.9501714516 | Q179: 8.067 | S179: 20.2 | T179: 9.651890902 | U179: =('32% Range'!$B$8-Data!S179)/Data!T179 -> 1.533378294 | V179: =(S179-'32% Range'!$B$7)/Data!T179 -> 1.782034233 | W179: 0.4374086631 | X179: 0.4626281753 | Y179: 0.9000368384 | Z179: 9.651
A180: 20.3 | B180: 4.67377991 | C180: =('32% Range'!$B$8-Data!A180)/Data!B180 -> 3.145205868 | D180: =(A180-'32% Range'!$B$7)/Data!B180 -> 3.701500783 | E180: 0.49917015 | F180: 0.499892836 | G180: 0.999062986 | H180: 4.67 | J180: 20.3 | K180: 8.05480603 | L180: =('32% Range'!$B$8-Data!J180)/Data!K180 -> 1.824997392 | M180: =(J180-'32% Range'!$B$7)/Data!K180 -> 2.147786047 | N180: 0.4659992886 | O180: 0.484134622 | P180: 0.9501339106 | Q180: 8.053 | S180: 20.3 | T180: 9.638844424 | U180: =('32% Range'!$B$8-Data!S180)/Data!T180 -> 1.525079081 | V180: =(S180-'32% Range'!$B$7)/Data!T180 -> 1.79482096 | W180: 0.436380313 | X180: 0.4636588849 | Y180: 0.9000391978 | Z180: 9.636
A181: 20.4 | B181: 4.650782944 | C181: =('32% Range'!$B$8-Data!A181)/Data!B181 -> 3.139256374 | D181: =(A181-'32% Range'!$B$7)/Data!B181 -> 3.741305541 | E181: 0.499153114 | F181: 0.4999084666 | G181: 0.9990615807 | H181: 4.647 | J181: 20.4 | K181: 8.039629372 | L181: =('32% Range'!$B$8-Data!J181)/Data!K181 -> 1.816004112 | M181: =(J181-'32% Range'!$B$7)/Data!K181 -> 2.164278873 | N181: 0.4653151293 | O181: 0.4847785234 | P181: 0.9500936528 | Q181: 8.036 | S181: 20.4 | T181: 9.624732962 | U181: =('32% Range'!$B$8-Data!S181)/Data!T181 -> 1.516925203 | V181: =(S181-'32% Range'!$B$7)/Data!T181 -> 1.807842365 | W181: 0.4353572152 | X181: 0.464684481 | Y181: 0.9000416961 | Z181: 9.622
A182: 20.5 | B182: 4.63043567 | C182: =('32% Range'!$B$8-Data!A182)/Data!B182 -> 3.131454799 | D182: =(A182-'32% Range'!$B$7)/Data!B182 -> 3.779341999 | E182: 0.4991302872 | F182: 0.4999213783 | G182: 0.9990516655 | H182: 4.623 | J182: 20.5 | K182: 8.044670835 | L182: =('32% Range'!$B$8-Data!J182)/Data!K182 -> 1.802435463 | M182: =(J182-'32% Range'!$B$7)/Data!K182 -> 2.175353145 | N182: 0.46426154 | O182: 0.4851981686 | P182: 0.9494597086 | Q182: 8.018 | S182: 20.5 | T182: 9.609551175 | U182: =('32% Range'!$B$8-Data!S182)/Data!T182 -> 1.508915425 | V182: =(S182-'32% Range'!$B$7)/Data!T182 -> 1.821104824 | W182: 0.4343398013 | X182: 0.4657045379 | Y182: 0.9000443393 | Z182: 9.606
A183: 20.6 | B183: 4.601618495 | C183: =('32% Range'!$B$8-Data!A183)/Data!B183 -> 3.129333737 | D183: =(A183-'32% Range'!$B$7)/Data!B183 -> 3.824741234 | E183: 0.499123984 | F183: 0.4999345452 | G183: 0.9990585293 | H183: 4.597 | J183: 20.6 | K183: 8.007891388 | L183: =('32% Range'!$B$8-Data!J183)/Data!K183 -> 1.798226187 | M183: =(J183-'32% Range'!$B$7)/Data!K183 -> 2.197832007 | N183: 0.4639294144 | O183: 0.4860194602 | P183: 0.9499488745 | Q183: 7.999 | S183: 20.6 | T183: 9.593293371 | U183: =('32% Range'!$B$8-Data!S183)/Data!T183 -> 1.501048643 | V183: =(S183-'32% Range'!$B$7)/Data!T183 -> 1.834615008 | W183: 0.4333285097 | X183: 0.4667186234 | Y183: 0.9000471331 | Z183: 9.59
A184: 20.7 | B184: 4.571727195 | C184: =('32% Range'!$B$8-Data!A184)/Data!B184 -> 3.127920672 | D184: =(A184-'32% Range'!$B$7)/Data!B184 -> 3.871622091 | E184: 0.4991197616 | F184: 0.4999459433 | G184: 0.9990657048 | H184: 4.571 | J184: 20.7 | K184: 7.96968384 | L184: =('32% Range'!$B$8-Data!J184)/Data!K184 -> 1.794299534 | M184: =(J184-'32% Range'!$B$7)/Data!K184 -> 2.220916206 | N184: 0.4636173138 | O184: 0.4868216813 | P184: 0.9504389951 | Q184: 7.978 | S184: 20.7 | T184: 9.575953525 | U184: =('32% Range'!$B$8-Data!S184)/Data!T184 -> 1.493323872 | V184: =(S184-'32% Range'!$B$7)/Data!T184 -> 1.848379898 | W184: 0.4323237852 | X184: 0.4677262977 | Y184: 0.9000500829 | Z184: 9.573
A185: 20.8 | B185: 4.540746961 | C185: =('32% Range'!$B$8-Data!A185)/Data!B185 -> 3.127238783 | D185: =(A185-'32% Range'!$B$7)/Data!B185 -> 3.920059883 | E185: 0.4991177173 | F185: 0.4999557365 | G185: 0.9990734538 | H185: 4.544 | J185: 20.8 | K185: 7.929411831 | L185: =('32% Range'!$B$8-Data!J185)/Data!K185 -> 1.790801172 | M185: =(J185-'32% Range'!$B$7)/Data!K185 -> 2.244807103 | N185: 0.4633373964 | O185: 0.4876097407 | P185: 0.9509471371 | Q185: 7.957 | S185: 20.8 | T185: 9.557525287 | U185: =('32% Range'!$B$8-Data!S185)/Data!T185 -> 1.485740249 | V185: =(S185-'32% Range'!$B$7)/Data!T185 -> 1.862406791 | W185: 0.4313260799 | X185: 0.4687271137 | Y185: 0.9000531936 | Z185: 9.555
A186: 20.9 | B186: 4.519495954 | C186: =('32% Range'!$B$8-Data!A186)/Data!B186 -> 3.119816932 | D186: =(A186-'32% Range'!$B$7)/Data!B186 -> 3.960618658 | E186: 0.4990951827 | F186: 0.4999626221 | G186: 0.9990578047 | H186: 4.516 | J186: 20.9 | K186: 7.946759267 | L186: =('32% Range'!$B$8-Data!J186)/Data!K186 -> 1.774308184 | M186: =(J186-'32% Range'!$B$7)/Data!K186 -> 2.252490531 | N186: 0.4619939062 | O186: 0.4878543548 | P186: 0.9498482609 | Q186: 7.937 | S186: 20.9 | T186: 9.538002005 | U186: =('32% Range'!$B$8-Data!S186)/Data!T186 -> 1.478297026 | V186: =(S186-'32% Range'!$B$7)/Data!T186 -> 1.876703317 | W186: 0.4303358533 | X186: 0.4697206161 | Y186: 0.9000564695 | Z186: 9.536
A187: 21 | B187: 4.490607474 | C187: =('32% Range'!$B$8-Data!A187)/Data!B187 -> 3.117618291 | D187: =(A187-'32% Range'!$B$7)/Data!B187 -> 4.008366374 | E187: 0.4990884062 | F187: 0.4999694299 | G187: 0.9990578361 | H187: 4.487 | J187: 21 | K187: 7.92476954 | L187: =('32% Range'!$B$8-Data!J187)/Data!K187 -> 1.766612888 | M187: =(J187-'32% Range'!$B$7)/Data!K187 -> 2.271359427 | N187: 0.4613534594 | O187: 0.4884373858 | P187: 0.9497908452 | Q187: 7.916 | S187: 21 | T187: 9.517759355 | U187: =('32% Range'!$B$8-Data!S187)/Data!T187 -> 1.470934437 | V187: =(S187-'32% Range'!$B$7)/Data!T187 -> 1.891201419 | W187: 0.4293455758 | X187: 0.470701269 | Y187: 0.9000468448 | Z187: 9.516
A188: 21.1 | B188: 4.46104426 | C188: =('32% Range'!$B$8-Data!A188)/Data!B188 -> 3.115862383 | D188: =(A188-'32% Range'!$B$7)/Data!B188 -> 4.057345981 | E188: 0.4990829608 | F188: 0.4999751832 | G188: 0.999058144 | H188: 4.458 | J188: 21.1 | K188: 7.901641425 | L188: =('32% Range'!$B$8-Data!J188)/Data!K188 -> 1.759128167 | M188: =(J188-'32% Range'!$B$7)/Data!K188 -> 2.290663297 | N188: 0.4607221292 | O188: 0.4890085525 | P188: 0.9497306817 | Q188: 7.894 | S188: 21.1 | T188: 9.515071202 | U188: =('32% Range'!$B$8-Data!S188)/Data!T188 -> 1.460840356 | V188: =(S188-'32% Range'!$B$7)/Data!T188 -> 1.902245355 | W188: 0.427970371 | X188: 0.4714304571 | Y188: 0.8994008281 | Z188: 9.494
A189: 21.2 | B189: 4.430885696 | C189: =('32% Range'!$B$8-Data!A189)/Data!B189 -> 3.114501467 | D189: =(A189-'32% Range'!$B$7)/Data!B189 -> 4.10753092 | E189: 0.4990787198 | F189: 0.4999800044 | G189: 0.9990587242 | H189: 4.429 | J189: 21.2 | K189: 7.877373371 | L189: =('32% Range'!$B$8-Data!J189)/Data!K189 -> 1.751852978 | M189: =(J189-'32% Range'!$B$7)/Data!K189 -> 2.310414797 | N189: 0.4601004541 | O189: 0.4895673997 | P189: 0.9496678538 | Q189: 7.871 | S189: 21.2 | T189: 9.474145398 | U189: =('32% Range'!$B$8-Data!S189)/Data!T189 -> 1.456595758 | V189: =(S189-'32% Range'!$B$7)/Data!T189 -> 1.921017594 | W189: 0.4273860004 | X189: 0.4726352553 | Y189: 0.9000212557 | Z189: 9.471
A190: 21.3 | B190: 4.400206254 | C190: =('32% Range'!$B$8-Data!A190)/Data!B190 -> 3.113490416 | D190: =(A190-'32% Range'!$B$7)/Data!B190 -> 4.158895957 | E190: 0.4990755574 | F190: 0.4999840105 | G190: 0.999059568 | H190: 4.398 | J190: 21.3 | K190: 7.851963404 | L190: =('32% Range'!$B$8-Data!J190)/Data!K190 -> 1.744786532 | M190: =(J190-'32% Range'!$B$7)/Data!K190 -> 2.330627266 | N190: 0.459488983 | O190: 0.4901134888 | P190: 0.9496024718 | Q190: 7.847 | S190: 21.3 | T190: 9.431781293 | U190: =('32% Range'!$B$8-Data!S190)/Data!T190 -> 1.452535802 | V190: =(S190-'32% Range'!$B$7)/Data!T190 -> 1.940248552 | W190: 0.426823659 | X190: 0.4738252548 | Y190: 0.9006489138 | Z190: 9.447
A191: 21.4 | B191: 4.36907501 | C191: =('32% Range'!$B$8-Data!A191)/Data!B191 -> 3.112787025 | D191: =(A191-'32% Range'!$B$7)/Data!B191 -> 4.211417739 | E191: 0.4990733515 | F191: 0.4999873114 | G191: 0.9990606628 | H191: 4.368 | J191: 21.4 | K191: 7.825409142 | L191: =('32% Range'!$B$8-Data!J191)/Data!K191 -> 1.737928299 | M191: =(J191-'32% Range'!$B$7)/Data!K191 -> 2.351314758 | N191: 0.4588882757 | O191: 0.4906463991 | P191: 0.9495346749 | Q191: 7.821 | S191: 21.4 | T191: 9.427568879 | U191: =('32% Range'!$B$8-Data!S191)/Data!T191 -> 1.442577633 | V191: =(S191-'32% Range'!$B$7)/Data!T191 -> 1.95172268 | W191: 0.4254302561 | X191: 0.4745144308 | Y191: 0.8999446869 | Z191: 9.422
A192: 21.5 | B192: 4.337555308 | C192: =('32% Range'!$B$8-Data!A192)/Data!B192 -> 3.112352245 | D192: =(A192-'32% Range'!$B$7)/Data!B192 -> 4.265075298 | E192: 0.4990719855 | F192: 0.4999900083 | G192: 0.9990619938 | H192: 4.336 | J192: 21.5 | K192: 7.797707834 | L192: =('32% Range'!$B$8-Data!J192)/Data!K192 -> 1.731277997 | M192: =(J192-'32% Range'!$B$7)/Data!K192 -> 2.37249207 | N192: 0.4582989031 | O192: 0.4911657288 | P192: 0.9494646319 | Q192: 7.793 | S192: 21.5 | T192: 9.402340347 | U192: =('32% Range'!$B$8-Data!S192)/Data!T192 -> 1.435812734 | V192: =(S192-'32% Range'!$B$7)/Data!T192 -> 1.967595228 | W192: 0.4244721823 | X192: 0.4754426854 | Y192: 0.8999148677 | Z192: 9.397
A193: 21.6 | B193: 4.30570461 | C193: =('32% Range'!$B$8-Data!A193)/Data!B193 -> 3.112150325 | D193: =(A193-'32% Range'!$B$7)/Data!B193 -> 4.319850451 | E193: 0.4990713505 | F193: 0.4999921933 | G193: 0.9990635438 | H193: 4.305 | J193: 21.6 | K193: 7.768856424 | L193: =('32% Range'!$B$8-Data!J193)/Data!K193 -> 1.724835583 | M193: =(J193-'32% Range'!$B$7)/Data!K193 -> 2.394174765 | N193: 0.4577214464 | O193: 0.4916710952 | P193: 0.9493925417 | Q193: 7.764 | S193: 21.6 | T193: 9.376026474 | U193: =('32% Range'!$B$8-Data!S193)/Data!T193 -> 1.429176852 | V193: =(S193-'32% Range'!$B$7)/Data!T193 -> 1.983782794 | W193: 0.4235232954 | X193: 0.4763599705 | Y193: 0.8998832659 | Z193: 9.371
A194: 21.7 | B194: 4.273574479 | C194: =('32% Range'!$B$8-Data!A194)/Data!B194 -> 3.112148873 | D194: =(A194-'32% Range'!$B$7)/Data!B194 -> 4.375728115 | E194: 0.4990713459 | F194: 0.4999939486 | G194: 0.9990652946 | H194: 4.272 | J194: 21.7 | K194: 7.738851659 | L194: =('32% Range'!$B$8-Data!J194)/Data!K194 -> 1.718601233 | M194: =(J194-'32% Range'!$B$7)/Data!K194 -> 2.416379177 | N194: 0.4571564965 | O194: 0.4921621361 | P194: 0.9493186326 | Q194: 7.733 | S194: 21.7 | T194: 9.348619971 | U194: =('32% Range'!$B$8-Data!S194)/Data!T194 -> 1.422669874 | V194: =(S194-'32% Range'!$B$7)/Data!T194 -> 2.000295237 | W194: 0.4225840612 | X194: 0.4772658035 | Y194: 0.8998498647 | Z194: 9.344
A195: 21.8 | B195: 4.241210725 | C195: =('32% Range'!$B$8-Data!A195)/Data!B195 -> 3.11231883 | D195: =(A195-'32% Range'!$B$7)/Data!B195 -> 4.432696515 | E195: 0.4990718805 | F195: 0.4999953469 | G195: 0.9990672274 | H195: 4.24 | J195: 21.8 | K195: 7.707690219 | L195: =('32% Range'!$B$8-Data!J195)/Data!K195 -> 1.712575314 | M195: =(J195-'32% Range'!$B$7)/Data!K195 -> 2.439122417 | N195: 0.456604651 | O195: 0.4926385101 | P195: 0.9492431611 | Q195: 7.7 | S195: 21.8 | T195: 9.320113028 | U195: =('32% Range'!$B$8-Data!S195)/Data!T195 -> 1.416291837 | V195: =(S195-'32% Range'!$B$7)/Data!T195 -> 2.017142919 | W195: 0.4216549616 | X195: 0.4781596996 | Y195: 0.8998146612 | Z195: 9.316
A196: 21.9 | B196: 4.208653654 | C196: =('32% Range'!$B$8-Data!A196)/Data!B196 -> 3.112634367 | D196: =(A196-'32% Range'!$B$7)/Data!B196 -> 4.490747292 | E196: 0.4990728721 | F196: 0.4999964513 | G196: 0.9990693234 | H196: 4.207 | J196: 21.9 | K196: 7.675368908 | L196: =('32% Range'!$B$8-Data!J196)/Data!K196 -> 1.706758353 | M196: =(J196-'32% Range'!$B$7)/Data!K196 -> 2.462422357 | N196: 0.4560665119 | O196: 0.4930998976 | P196: 0.9491664095 | Q196: 7.664 | S196: 21.9 | T196: 9.290497275 | U196: =('32% Range'!$B$8-Data!S196)/Data!T196 -> 1.41004293 | V196: =(S196-'32% Range'!$B$7)/Data!T196 -> 2.034336746 | W196: 0.4207364965 | X196: 0.4790411727 | Y196: 0.8997776692 | Z196: 9.287
A197: 22 | B197: 4.175938428 | C197: =('32% Range'!$B$8-Data!A197)/Data!B197 -> 3.11307272 | D197: =(A197-'32% Range'!$B$7)/Data!B197 -> 4.549875514 | E197: 0.499074248 | F197: 0.4999973161 | G197: 0.9990715642 | H197: 4.174 | J197: 22 | K197: 7.64188489 | L197: =('32% Range'!$B$8-Data!J197)/Data!K197 -> 1.701150984 | M197: =(J197-'32% Range'!$B$7)/Data!K197 -> 2.486297592 | N197: 0.4555426804 | O197: 0.4935460013 | P197: 0.9490886816 | Q197: 7.625 | S197: 22 | T197: 9.259763738 | U197: =('32% Range'!$B$8-Data!S197)/Data!T197 -> 1.403923509 | V197: =(S197-'32% Range'!$B$7)/Data!T197 -> 2.051888205 | W197: 0.4198291858 | X197: 0.4799097358 | Y197: 0.8997389217 | Z197: 9.256
A198: 22.1 | B198: 4.143095492 | C198: =('32% Range'!$B$8-Data!A198)/Data!B198 -> 3.113613969 | D198: =(A198-'32% Range'!$B$7)/Data!B198 -> 4.610079598 | E198: 0.4990759444 | F198: 0.4999979874 | G198: 0.9990739318 | H198: 4.14 | J198: 22.1 | K198: 7.607235972 | L198: =('32% Range'!$B$8-Data!J198)/Data!K198 -> 1.695753891 | M198: =(J198-'32% Range'!$B$7)/Data!K198 -> 2.510767389 | N198: 0.455033751 | O198: 0.4939765476 | P198: 0.9490102986 | Q198: 7.584 | S198: 22.1 | T198: 9.22790279 | U198: =('32% Range'!$B$8-Data!S198)/Data!T198 -> 1.397934102 | V198: =(S198-'32% Range'!$B$7)/Data!T198 -> 2.069809407 | W198: 0.4189335716 | X198: 0.4807649019 | Y198: 0.8996984735 | Z198: 9.224
A199: 22.2 | B199: 4.103724661 | C199: =('32% Range'!$B$8-Data!A199)/Data!B199 -> 3.119117645 | D199: =(A199-'32% Range'!$B$7)/Data!B199 -> 4.678676467 | E199: 0.4990930324 | F199: 0.4999985563 | G199: 0.9990915887 | H199: 4.106 | J199: 22.2 | K199: 7.529890467 | L199: =('32% Range'!$B$8-Data!J199)/Data!K199 -> 1.699891925 | M199: =(J199-'32% Range'!$B$7)/Data!K199 -> 2.549837887 | N199: 0.4554243719 | O199: 0.494611349 | P199: 0.9500357209 | Q199: 7.54 | S199: 22.2 | T199: 9.194904105 | U199: =('32% Range'!$B$8-Data!S199)/Data!T199 -> 1.392075421 | V199: =(S199-'32% Range'!$B$7)/Data!T199 -> 2.088113131 | W199: 0.4180502198 | X199: 0.4816061846 | Y199: 0.8996564044 | Z199: 9.191
A200: 22.3 | B200: 4.070307811 | C200: =('32% Range'!$B$8-Data!A200)/Data!B200 -> 3.120157145 | D200: =(A200-'32% Range'!$B$7)/Data!B200 -> 4.741656134 | E200: =NORMSDIST(C200)-0.5 -> 0.4990962271 | F200: =NORMSDIST(D200)-0.5 -> 0.4999989401 | G200: =E200+F200 -> 0.9990951672 | H200: 4.072 | J200: 22.3 | K200: 7.489683598 | L200: =('32% Range'!$B$8-Data!J200)/Data!K200 -> 1.695665756 | M200: =(J200-'32% Range'!$B$7)/Data!K200 -> 2.576877881 | N200: =NORMSDIST(L200)-0.5 -> 0.4550254014 | O200: =NORMSDIST(M200)-0.5 -> 0.4950151417 | P200: =N200+O200 -> 0.9500405431 | Q200: 7.496 | S200: 22.3 | T200: 9.160756621 | U200: =('32% Range'!$B$8-Data!S200)/Data!T200 -> 1.386348369 | V200: =(S200-'32% Range'!$B$7)/Data!T200 -> 2.106812876 | W200: 0.417179723 | X200: 0.4824330985 | Y200: 0.8996128215 | Z200: 9.157
A201: 22.4 | B201: 4.036847687 | C201: =('32% Range'!$B$8-Data!A201)/Data!B201 -> 3.121247314 | D201: =(A201-'32% Range'!$B$7)/Data!B201 -> 4.805729991 | E201: 0.4990995664 | F201: 0.4999992291 | G201: 0.9990987954 | H201: 4.038 | J201: 22.4 | K201: 7.448312992 | L201: =('32% Range'!$B$8-Data!J201)/Data!K201 -> 1.691658234 | M201: =(J201-'32% Range'!$B$7)/Data!K201 -> 2.604616645 | N201: 0.4546444219 | O201: 0.4954011447 | P201: 0.9500455665 | Q201: 7.45 | S201: 22.4 | T201: 9.125448497 | U201: =('32% Range'!$B$8-Data!S201)/Data!T201 -> 1.380754053 | V201: =(S201-'32% Range'!$B$7)/Data!T201 -> 2.125922907 | W201: 0.4163227024 | X201: 0.4832451604 | Y201: 0.8995678628 | Z201: 9.121
... 126 more rows
